{"text_format":"1","workbook":"xlsx","n_sheets":5,"sheets":["TS New","TS Old","Payslip","data","ورقة1"],"not_rendered":{"charts":0,"images":0,"macros":1,"external_links":3,"defined_names":28,"comments":0,"pivot_tables":0},"unopened":[],"bounds":{"document_bytes":16777216,"sheet_cells":100000,"rows_first":2000,"rows_last":500,"rows_between":2000,"halvings":0,"cell_chars":16384,"cell_head_chars":4096},"cells_cut":0,"cells_raw":0,"read":"whole","date_system":"1900"}

{"sheet":"TS New","index":0,"n_rows":626,"n_cols":17,"rows_kept":626,"cut":false,"hidden":false,"merged":[[26,4,27,4],[12,1,12,3],[6,13,6,15],[7,14,9,15],[7,13,9,13],[7,12,9,12],[7,11,9,11],[15,1,16,3],[16,5,16,6],[2,2,2,4],[3,2,3,4],[4,2,4,4],[8,1,8,3],[10,1,10,3],[13,5,13,6],[14,1,14,3],[24,4,25,4],[24,5,25,5],[24,6,25,6],[20,4,21,4],[20,5,21,5],[20,6,21,6],[22,4,23,4],[22,5,23,5],[22,6,23,6]]}
[]
[]
[null,null,"Timesheet - Field Staff Shift basis",null,null,"2018-06-01"]
[]
[null,null,{"$f":"\"Location:\" & VLOOKUP(B13,data!B6:AR42,43,0)","v":"Location:23"},null,null,null,null,null,null,null,{"$f":"INDEX('[3]TS New'!$B$3:$B$1000,$M$7)","v":0},null,"الكل","عدد الأسماء المطلوبين"]
[null,null,null,null,"The signatures on this time sheet attests to",null,null,null,null,null,null,null,"الكل","الاسم المطلوب طباعته",null,null,"الكل"]
["Report Period:",{"$f":"A21","v":"2018-06-01"},{"$f":"IF(A49=\"\",A48,IF(A51=\"\",A50,A51))","v":"2018-06-30"},null,null,null,null,null,null,null,null,null,2,"رقم الاسم الذي ستتم طباعته",null,null,1]
[null,null,null,null,"grant agreements is a reasonable and true",null,null,null,null,null,null,null,"إلى رقم",null,"طباعة من رقم",null,{"$f":"IF(OR(Q7=$M$5,Q7=\"\"),\"\",Q7+1)","v":2}]
["Employee Name:",{"$f":"VLOOKUP(B13,data!B6:AR42,2,0)","v":"Wasel "},null,null,"estimation of the time and effort dedicated",null,null,null,null,null,null,null,null,null,null,null,3]
[null,null,null,null,"to each project for the period being reported",null,null,null,null,null,null,null,null,null,null,null,4]
["Position:",{"$f":"VLOOKUP(B13,data!B6:AR42,3,0)","v":"Field Project Coordinator"},null,null,null,null,null,null,null,null,null,null,null,null,null,null,5]
[null,null,null,null,null,null,null,null,null,null,null,null,null,null,null,null,6]
["Employee Code:",2300133,null,null,null,null,null,null,null,null,null,null,null,null,null,null,7]
[null,null,null,null,"Supervisor Name:",{"$f":"VLOOKUP(B13,data!B6:AR42,26,0)","v":"Dr"},null,null,null,null,null,null,null,null,null,null,8]
["Facility ",{"$f":"VLOOKUP(B13,data!B6:AR42,5,0)","v":"admın"},null,null,null,null,null,null,null,null,null,null,null,null,null,null,9]
[null,null,null,null,null,null,null,null,null,null,null,null,null,null,null,null,10]
["Employee Signature:",null,null,null,"Supervisor Signature:",null,null,null,null,null,null,null,null,null,null,null,11]
[null,null,null,null,null,null,null,null,null,null,null,null,null,null,null,null,12]
[null,null,null,null,null,null,null,null,null,null,null,null,null,null,null,null,13]
["Pay Period Day","Day","Hours Worked",null,"Grant code","End Date","% to Charge",null,null,null,null,null,null,null,null,null,14]
[{"$f":"F3","v":"2018-06-01"},{"$f":"TEXT(A21,\"[$-809]ddd;@\")","v":"Fri"},12,null,"FP","2018-12-31",{"$f":"VLOOKUP(B13,data!B6:AR42,27,0)","v":0},null,null,null,null,null,null,null,null,null,15]
[{"$f":"A21+1","v":"2018-06-02"},{"$f":"TEXT(A22,\"[$-809]ddd;@\")","v":"Sat"},12,null,null,null,null,null,null,null,null,null,null,null,null,null,16]
["2018-06-03","Sun",12,null,"EPIU","2018-11-14",{"$f":"VLOOKUP(B13,data!B6:AR42,28,0)","v":0},null,null,null,null,null,null,null,null,null,17]
["2018-06-04","Mon",12,null,null,null,null,null,null,null,null,null,null,null,null,null,18]
["2018-06-05","Tue",12,null,"0649","2019-05-15",{"$f":"VLOOKUP(B13,data!B6:AR42,29,0)","v":0},null,null,null,null,null,null,null,null,null,19]
["2018-06-06","Wed",12,null,null,null,null,null,null,null,null,null,null,null,null,null,20]
["2018-06-07","Thu",12,null,"QC-0571","2019-03-19",{"$f":"VLOOKUP(B13,data!B6:AR42,30,0)","v":0},null,null,null,null,null,null,null,null,null,21]
["2018-06-08","Fri",12,null,null,null,null,null,null,null,null,null,null,null,null,null,22]
["2018-06-09","Sat",12,null,"1885","2018-10-02",{"$f":"VLOOKUP(B13,data!B6:AR42,31,0)","v":0},null,null,null,null,null,null,null,null,null,23]
["2018-06-10","Sun",12,null,1898,"2018-10-02",{"$f":"VLOOKUP(B13,data!B6:AR42,32,0)","v":0},null,null,null,null,null,null,null,null,null,24]
["2018-06-11","Mon",12,null,"8367","2018-09-14",{"$f":"VLOOKUP(B13,data!B6:AR42,40,0)","v":0},null,null,null,null,null,null,null,null,null,25]
["2018-06-12","Tue",12,null,5205,"2018-12-15",{"$f":"VLOOKUP(B13,data!B6:AR42,42,0)","v":0},null,null,null,null,null,null,null,null,null,26]
["2018-06-13","Wed",12,null,"1893","2018-10-02",{"$f":"VLOOKUP(B13,data!B6:AR42,33,0)","v":0},null,null,null,null,null,null,null,null,null,27]
["2018-06-14","Thu",12,null,"s",null,{"$f":"VLOOKUP(B13,data!B6:AR42,38,0)","v":0},null,null,null,null,null,null,null,null,null,28]
["2018-06-15","Fri",12,null,714,"2018-08-14",{"$f":"VLOOKUP(B13,data!B6:AR42,34,0)","v":0},null,null,null,null,null,null,null,null,null,29]
["2018-06-16","Sat",12,null,649,"2019-04-15",{"$f":"VLOOKUP(B13,data!B6:AR42,35,0)","v":0},null,null,null,null,null,null,null,null,null,30]
["2018-06-17","Sun",12,null,7196,"2018-06-30",{"$f":"VLOOKUP(B13,data!B6:AR42,36,0)","v":0},null,null,null,null,null,null,null,null,null,31]
["2018-06-18","Mon",12,null,3798,"2018-10-15",{"$f":"VLOOKUP(B13,data!B6:AR42,39,0)","v":0},null,null,null,null,null,null,null,null,null,32]
["2018-06-19","Tue",12,null,573,"2019-03-19",{"$f":"VLOOKUP(B13,data!B6:AR42,37,0)","v":0},null,null,null,null,null,null,null,null,null,33]
["2018-06-20","Wed",12,null,1473,"2018-08-31",{"$f":"VLOOKUP(B13,data!B6:AR42,41,0)","v":1},null,null,null,null,null,null,null,null,null,34]
["2018-06-21","Thu",12,null,"Total",null,{"$f":"SUM(G19:G40)*100 & \"%\"","v":"100%"},null,null,null,null,null,null,null,null,null,35]
["2018-06-22","Fri",12,null,null,null,null,null,null,null,null,null,null,null,null,null,36]
["2018-06-23","Sat",12,null,"Leaves",null,null,null,null,null,null,null,null,null,null,null,37]
["2018-06-24","Sun",12,null,"Annual","Sick\nLeave","Unpaid",null,null,null,null,null,null,null,null,null,38]
["2018-06-25","Mon",12,null,null,null,null,null,null,null,null,null,null,null,null,null,39]
["2018-06-26","Tue",12,null,null,null,null,null,null,null,null,null,null,null,null,null,40]
["2018-06-27","Wed",12,null,null,null,0,null,null,null,null,null,null,null,null,null,41]
["2018-06-28","Thu",12,null,null,null,null,null,null,null,null,null,null,null,null,null,42]
[{"$f":"IF(DAY(A48+1)<5,\"\",A48+1)","v":"2018-06-29"},"Fri",{"$f":"IF(B49=\"\",\"\",MAX($C47:$C48))","v":12},null,null,null,0,null,null,null,null,null,null,null,null,null,43]
[{"$f":"IF(DAY(A48+2)<5,\"\",A48+2)","v":"2018-06-30"},"Sat",{"$f":"IF(B50=\"\",\"\",MAX($C48:$C49))","v":12}]
[{"$f":"IF(DAY(A48+3)<5,\"\",A48+3)","v":""},"","",null,null,null,{"$f":"G46-G47","v":0},null,null,null,null,null,null,null,null,null,{"$f":"IF(OR(Q49=$M$5,Q49=\"\"),\"\",Q49+1)","v":44}]
["Total Hours ",null,{"$f":"SUM(C21:C51)","v":360},null,null,null,null,null,null,null,null,null,null,null,null,null,""]
[null,null,null,null,null,null,null,null,null,null,null,null,null,null,null,null,45]
[null,null,null,null,null,null,null,null,null,null,null,null,null,null,null,null,""]
[null,null,null,null,null,null,null,null,null,null,null,null,null,null,null,null,46]
[null,null,null,null,null,null,null,null,null,null,null,null,null,null,null,null,""]
[null,null,null,null,null,null,null,null,null,null,null,null,null,null,null,null,47]
[null,null,null,null,null,null,null,null,null,null,null,null,null,null,null,null,""]
[null,null,null,null,null,null,null,null,null,null,null,null,null,null,null,null,48]
[null,null,null,null,null,null,null,null,null,null,null,null,null,null,null,null,""]
[null,null,null,null,null,null,null,null,null,null,null,null,null,null,null,null,49]
[null,null,null,null,null,null,null,null,null,null,null,null,null,null,null,null,""]
[null,null,null,null,null,null,null,null,null,null,null,null,null,null,null,null,50]
[null,null,null,null,null,null,null,null,null,null,null,null,null,null,null,null,""]
[null,null,null,null,null,null,null,null,null,null,null,null,null,null,null,null,51]
[null,null,null,null,null,null,null,null,null,null,null,null,null,null,null,null,""]
[null,null,null,null,null,null,null,null,null,null,null,null,null,null,null,null,52]
[null,null,null,null,null,null,null,null,null,null,null,null,null,null,null,null,""]
[null,null,null,null,null,null,null,null,null,null,null,null,null,null,null,null,53]
[null,null,null,null,null,null,null,null,null,null,null,null,null,null,null,null,{"$f":"IF(OR(Q69=$M$5,Q69=\"\"),\"\",Q69+1)","v":54}]
[null,null,null,null,null,null,null,null,null,null,null,null,null,null,null,null,55]
[null,null,null,null,null,null,null,null,null,null,null,null,null,null,null,null,56]
[null,null,null,null,null,null,null,null,null,null,null,null,null,null,null,null,57]
[null,null,null,null,null,null,null,null,null,null,null,null,null,null,null,null,58]
[null,null,null,null,null,null,null,null,null,null,null,null,null,null,null,null,59]
[null,null,null,null,null,null,null,null,null,null,null,null,null,null,null,null,60]
[null,null,null,null,null,null,null,null,null,null,null,null,null,null,null,null,61]
[null,null,null,null,null,null,null,null,null,null,null,null,null,null,null,null,62]
[null,null,null,null,null,null,null,null,null,null,null,null,null,null,null,null,63]
[null,null,null,null,null,null,null,null,null,null,null,null,null,null,null,null,64]
[null,null,null,null,null,null,null,null,null,null,null,null,null,null,null,null,65]
[null,null,null,null,null,null,null,null,null,null,null,null,null,null,null,null,66]
[null,null,null,null,null,null,null,null,null,null,null,null,null,null,null,null,67]
[null,null,null,null,null,null,null,null,null,null,null,null,null,null,null,null,68]
[null,null,null,null,null,null,null,null,null,null,null,null,null,null,null,null,69]
[null,null,null,null,null,null,null,null,null,null,null,null,null,null,null,null,70]
[null,null,null,null,null,null,null,null,null,null,null,null,null,null,null,null,71]
[null,null,null,null,null,null,null,null,null,null,null,null,null,null,null,null,72]
[null,null,null,null,null,null,null,null,null,null,null,null,null,null,null,null,73]
[null,null,null,null,null,null,null,null,null,null,null,null,null,null,null,null,74]
[null,null,null,null,null,null,null,null,null,null,null,null,null,null,null,null,75]
[null,null,null,null,null,null,null,null,null,null,null,null,null,null,null,null,76]
[null,null,null,null,null,null,null,null,null,null,null,null,null,null,null,null,77]
[null,null,null,null,null,null,null,null,null,null,null,null,null,null,null,null,78]
[null,null,null,null,null,null,null,null,null,null,null,null,null,null,null,null,79]
[null,null,null,null,null,null,null,null,null,null,null,null,null,null,null,null,80]
[null,null,null,null,null,null,null,null,null,null,null,null,null,null,null,null,81]
[null,null,null,null,null,null,null,null,null,null,null,null,null,null,null,null,82]
[null,null,null,null,null,null,null,null,null,null,null,null,null,null,null,null,83]
[null,null,null,null,null,null,null,null,null,null,null,null,null,null,null,null,84]
[null,null,null,null,null,null,null,null,null,null,null,null,null,null,null,null,85]
[null,null,null,null,null,null,null,null,null,null,null,null,null,null,null,null,86]
[null,null,null,null,null,null,null,null,null,null,null,null,null,null,null,null,87]
[null,null,null,null,null,null,null,null,null,null,null,null,null,null,null,null,88]
[null,null,null,null,null,null,null,null,null,null,null,null,null,null,null,null,89]
[null,null,null,null,null,null,null,null,null,null,null,null,null,null,null,null,90]
[null,null,null,null,null,null,null,null,null,null,null,null,null,null,null,null,91]
[null,null,null,null,null,null,null,null,null,null,null,null,null,null,null,null,92]
[null,null,null,null,null,null,null,null,null,null,null,null,null,null,null,null,93]
[null,null,null,null,null,null,null,null,null,null,null,null,null,null,null,null,94]
[null,null,null,null,null,null,null,null,null,null,null,null,null,null,null,null,95]
[null,null,null,null,null,null,null,null,null,null,null,null,null,null,null,null,96]
[null,null,null,null,null,null,null,null,null,null,null,null,null,null,null,null,97]
[null,null,null,null,null,null,null,null,null,null,null,null,null,null,null,null,98]
[null,null,null,null,null,null,null,null,null,null,null,null,null,null,null,null,99]
[null,null,null,null,null,null,null,null,null,null,null,null,null,null,null,null,100]
[null,null,null,null,null,null,null,null,null,null,null,null,null,null,null,null,101]
[null,null,null,null,null,null,null,null,null,null,null,null,null,null,null,null,102]
[null,null,null,null,null,null,null,null,null,null,null,null,null,null,null,null,103]
[null,null,null,null,null,null,null,null,null,null,null,null,null,null,null,null,104]
[null,null,null,null,null,null,null,null,null,null,null,null,null,null,null,null,105]
[null,null,null,null,null,null,null,null,null,null,null,null,null,null,null,null,106]
[null,null,null,null,null,null,null,null,null,null,null,null,null,null,null,null,107]
[null,null,null,null,null,null,null,null,null,null,null,null,null,null,null,null,108]
[null,null,null,null,null,null,null,null,null,null,null,null,null,null,null,null,109]
[null,null,null,null,null,null,null,null,null,null,null,null,null,null,null,null,110]
[null,null,null,null,null,null,null,null,null,null,null,null,null,null,null,null,111]
[null,null,null,null,null,null,null,null,null,null,null,null,null,null,null,null,112]
[null,null,null,null,null,null,null,null,null,null,null,null,null,null,null,null,113]
[null,null,null,null,null,null,null,null,null,null,null,null,null,null,null,null,114]
[null,null,null,null,null,null,null,null,null,null,null,null,null,null,null,null,115]
[null,null,null,null,null,null,null,null,null,null,null,null,null,null,null,null,116]
[null,null,null,null,null,null,null,null,null,null,null,null,null,null,null,null,117]
[null,null,null,null,null,null,null,null,null,null,null,null,null,null,null,null,{"$f":"IF(OR(Q133=$M$5,Q133=\"\"),\"\",Q133+1)","v":118}]
[null,null,null,null,null,null,null,null,null,null,null,null,null,null,null,null,119]
[null,null,null,null,null,null,null,null,null,null,null,null,null,null,null,null,120]
[null,null,null,null,null,null,null,null,null,null,null,null,null,null,null,null,121]
[null,null,null,null,null,null,null,null,null,null,null,null,null,null,null,null,122]
[null,null,null,null,null,null,null,null,null,null,null,null,null,null,null,null,123]
[null,null,null,null,null,null,null,null,null,null,null,null,null,null,null,null,124]
[null,null,null,null,null,null,null,null,null,null,null,null,null,null,null,null,125]
[null,null,null,null,null,null,null,null,null,null,null,null,null,null,null,null,126]
[null,null,null,null,null,null,null,null,null,null,null,null,null,null,null,null,127]
[null,null,null,null,null,null,null,null,null,null,null,null,null,null,null,null,128]
[null,null,null,null,null,null,null,null,null,null,null,null,null,null,null,null,129]
[null,null,null,null,null,null,null,null,null,null,null,null,null,null,null,null,130]
[null,null,null,null,null,null,null,null,null,null,null,null,null,null,null,null,131]
[null,null,null,null,null,null,null,null,null,null,null,null,null,null,null,null,132]
[null,null,null,null,null,null,null,null,null,null,null,null,null,null,null,null,133]
[null,null,null,null,null,null,null,null,null,null,null,null,null,null,null,null,134]
[null,null,null,null,null,null,null,null,null,null,null,null,null,null,null,null,135]
[null,null,null,null,null,null,null,null,null,null,null,null,null,null,null,null,136]
[null,null,null,null,null,null,null,null,null,null,null,null,null,null,null,null,137]
[null,null,null,null,null,null,null,null,null,null,null,null,null,null,null,null,138]
[null,null,null,null,null,null,null,null,null,null,null,null,null,null,null,null,139]
[null,null,null,null,null,null,null,null,null,null,null,null,null,null,null,null,140]
[null,null,null,null,null,null,null,null,null,null,null,null,null,null,null,null,141]
[null,null,null,null,null,null,null,null,null,null,null,null,null,null,null,null,142]
[null,null,null,null,null,null,null,null,null,null,null,null,null,null,null,null,143]
[null,null,null,null,null,null,null,null,null,null,null,null,null,null,null,null,144]
[null,null,null,null,null,null,null,null,null,null,null,null,null,null,null,null,145]
[null,null,null,null,null,null,null,null,null,null,null,null,null,null,null,null,146]
[null,null,null,null,null,null,null,null,null,null,null,null,null,null,null,null,147]
[null,null,null,null,null,null,null,null,null,null,null,null,null,null,null,null,148]
[null,null,null,null,null,null,null,null,null,null,null,null,null,null,null,null,149]
[null,null,null,null,null,null,null,null,null,null,null,null,null,null,null,null,150]
[null,null,null,null,null,null,null,null,null,null,null,null,null,null,null,null,151]
[null,null,null,null,null,null,null,null,null,null,null,null,null,null,null,null,152]
[null,null,null,null,null,null,null,null,null,null,null,null,null,null,null,null,153]
[null,null,null,null,null,null,null,null,null,null,null,null,null,null,null,null,154]
[null,null,null,null,null,null,null,null,null,null,null,null,null,null,null,null,155]
[null,null,null,null,null,null,null,null,null,null,null,null,null,null,null,null,156]
[null,null,null,null,null,null,null,null,null,null,null,null,null,null,null,null,157]
[null,null,null,null,null,null,null,null,null,null,null,null,null,null,null,null,158]
[null,null,null,null,null,null,null,null,null,null,null,null,null,null,null,null,159]
[null,null,null,null,null,null,null,null,null,null,null,null,null,null,null,null,160]
[null,null,null,null,null,null,null,null,null,null,null,null,null,null,null,null,161]
[null,null,null,null,null,null,null,null,null,null,null,null,null,null,null,null,162]
[null,null,null,null,null,null,null,null,null,null,null,null,null,null,null,null,163]
[null,null,null,null,null,null,null,null,null,null,null,null,null,null,null,null,164]
[null,null,null,null,null,null,null,null,null,null,null,null,null,null,null,null,165]
[null,null,null,null,null,null,null,null,null,null,null,null,null,null,null,null,166]
[null,null,null,null,null,null,null,null,null,null,null,null,null,null,null,null,167]
[null,null,null,null,null,null,null,null,null,null,null,null,null,null,null,null,168]
[null,null,null,null,null,null,null,null,null,null,null,null,null,null,null,null,169]
[null,null,null,null,null,null,null,null,null,null,null,null,null,null,null,null,170]
[null,null,null,null,null,null,null,null,null,null,null,null,null,null,null,null,171]
[null,null,null,null,null,null,null,null,null,null,null,null,null,null,null,null,172]
[null,null,null,null,null,null,null,null,null,null,null,null,null,null,null,null,173]
[null,null,null,null,null,null,null,null,null,null,null,null,null,null,null,null,174]
[null,null,null,null,null,null,null,null,null,null,null,null,null,null,null,null,175]
[null,null,null,null,null,null,null,null,null,null,null,null,null,null,null,null,176]
[null,null,null,null,null,null,null,null,null,null,null,null,null,null,null,null,177]
[null,null,null,null,null,null,null,null,null,null,null,null,null,null,null,null,178]
[null,null,null,null,null,null,null,null,null,null,null,null,null,null,null,null,179]
[null,null,null,null,null,null,null,null,null,null,null,null,null,null,null,null,180]
[null,null,null,null,null,null,null,null,null,null,null,null,null,null,null,null,181]
[null,null,null,null,null,null,null,null,null,null,null,null,null,null,null,null,{"$f":"IF(OR(Q197=$M$5,Q197=\"\"),\"\",Q197+1)","v":182}]
[null,null,null,null,null,null,null,null,null,null,null,null,null,null,null,null,183]
[null,null,null,null,null,null,null,null,null,null,null,null,null,null,null,null,184]
[null,null,null,null,null,null,null,null,null,null,null,null,null,null,null,null,185]
[null,null,null,null,null,null,null,null,null,null,null,null,null,null,null,null,186]
[null,null,null,null,null,null,null,null,null,null,null,null,null,null,null,null,187]
[null,null,null,null,null,null,null,null,null,null,null,null,null,null,null,null,188]
[null,null,null,null,null,null,null,null,null,null,null,null,null,null,null,null,189]
[null,null,null,null,null,null,null,null,null,null,null,null,null,null,null,null,190]
[null,null,null,null,null,null,null,null,null,null,null,null,null,null,null,null,191]
[null,null,null,null,null,null,null,null,null,null,null,null,null,null,null,null,192]
[null,null,null,null,null,null,null,null,null,null,null,null,null,null,null,null,193]
[null,null,null,null,null,null,null,null,null,null,null,null,null,null,null,null,194]
[null,null,null,null,null,null,null,null,null,null,null,null,null,null,null,null,195]
[null,null,null,null,null,null,null,null,null,null,null,null,null,null,null,null,196]
[null,null,null,null,null,null,null,null,null,null,null,null,null,null,null,null,197]
[null,null,null,null,null,null,null,null,null,null,null,null,null,null,null,null,198]
[null,null,null,null,null,null,null,null,null,null,null,null,null,null,null,null,199]
[null,null,null,null,null,null,null,null,null,null,null,null,null,null,null,null,200]
[null,null,null,null,null,null,null,null,null,null,null,null,null,null,null,null,201]
[null,null,null,null,null,null,null,null,null,null,null,null,null,null,null,null,202]
[null,null,null,null,null,null,null,null,null,null,null,null,null,null,null,null,203]
[null,null,null,null,null,null,null,null,null,null,null,null,null,null,null,null,204]
[null,null,null,null,null,null,null,null,null,null,null,null,null,null,null,null,205]
[null,null,null,null,null,null,null,null,null,null,null,null,null,null,null,null,206]
[null,null,null,null,null,null,null,null,null,null,null,null,null,null,null,null,207]
[null,null,null,null,null,null,null,null,null,null,null,null,null,null,null,null,208]
[null,null,null,null,null,null,null,null,null,null,null,null,null,null,null,null,209]
[null,null,null,null,null,null,null,null,null,null,null,null,null,null,null,null,210]
[null,null,null,null,null,null,null,null,null,null,null,null,null,null,null,null,211]
[null,null,null,null,null,null,null,null,null,null,null,null,null,null,null,null,212]
[null,null,null,null,null,null,null,null,null,null,null,null,null,null,null,null,213]
[null,null,null,null,null,null,null,null,null,null,null,null,null,null,null,null,214]
[null,null,null,null,null,null,null,null,null,null,null,null,null,null,null,null,215]
[null,null,null,null,null,null,null,null,null,null,null,null,null,null,null,null,216]
[null,null,null,null,null,null,null,null,null,null,null,null,null,null,null,null,217]
[null,null,null,null,null,null,null,null,null,null,null,null,null,null,null,null,218]
[null,null,null,null,null,null,null,null,null,null,null,null,null,null,null,null,219]
[null,null,null,null,null,null,null,null,null,null,null,null,null,null,null,null,220]
[null,null,null,null,null,null,null,null,null,null,null,null,null,null,null,null,221]
[null,null,null,null,null,null,null,null,null,null,null,null,null,null,null,null,222]
[null,null,null,null,null,null,null,null,null,null,null,null,null,null,null,null,223]
[null,null,null,null,null,null,null,null,null,null,null,null,null,null,null,null,224]
[null,null,null,null,null,null,null,null,null,null,null,null,null,null,null,null,225]
[null,null,null,null,null,null,null,null,null,null,null,null,null,null,null,null,226]
[null,null,null,null,null,null,null,null,null,null,null,null,null,null,null,null,227]
[null,null,null,null,null,null,null,null,null,null,null,null,null,null,null,null,228]
[null,null,null,null,null,null,null,null,null,null,null,null,null,null,null,null,229]
[null,null,null,null,null,null,null,null,null,null,null,null,null,null,null,null,230]
[null,null,null,null,null,null,null,null,null,null,null,null,null,null,null,null,231]
[null,null,null,null,null,null,null,null,null,null,null,null,null,null,null,null,232]
[null,null,null,null,null,null,null,null,null,null,null,null,null,null,null,null,233]
[null,null,null,null,null,null,null,null,null,null,null,null,null,null,null,null,234]
[null,null,null,null,null,null,null,null,null,null,null,null,null,null,null,null,235]
[null,null,null,null,null,null,null,null,null,null,null,null,null,null,null,null,236]
[null,null,null,null,null,null,null,null,null,null,null,null,null,null,null,null,237]
[null,null,null,null,null,null,null,null,null,null,null,null,null,null,null,null,238]
[null,null,null,null,null,null,null,null,null,null,null,null,null,null,null,null,239]
[null,null,null,null,null,null,null,null,null,null,null,null,null,null,null,null,240]
[null,null,null,null,null,null,null,null,null,null,null,null,null,null,null,null,241]
[null,null,null,null,null,null,null,null,null,null,null,null,null,null,null,null,242]
[null,null,null,null,null,null,null,null,null,null,null,null,null,null,null,null,243]
[null,null,null,null,null,null,null,null,null,null,null,null,null,null,null,null,244]
[null,null,null,null,null,null,null,null,null,null,null,null,null,null,null,null,245]
[null,null,null,null,null,null,null,null,null,null,null,null,null,null,null,null,{"$f":"IF(OR(Q261=$M$5,Q261=\"\"),\"\",Q261+1)","v":246}]
[null,null,null,null,null,null,null,null,null,null,null,null,null,null,null,null,247]
[null,null,null,null,null,null,null,null,null,null,null,null,null,null,null,null,248]
[null,null,null,null,null,null,null,null,null,null,null,null,null,null,null,null,249]
[null,null,null,null,null,null,null,null,null,null,null,null,null,null,null,null,250]
[null,null,null,null,null,null,null,null,null,null,null,null,null,null,null,null,251]
[null,null,null,null,null,null,null,null,null,null,null,null,null,null,null,null,252]
[null,null,null,null,null,null,null,null,null,null,null,null,null,null,null,null,253]
[null,null,null,null,null,null,null,null,null,null,null,null,null,null,null,null,254]
[null,null,null,null,null,null,null,null,null,null,null,null,null,null,null,null,255]
[null,null,null,null,null,null,null,null,null,null,null,null,null,null,null,null,256]
[null,null,null,null,null,null,null,null,null,null,null,null,null,null,null,null,257]
[null,null,null,null,null,null,null,null,null,null,null,null,null,null,null,null,258]
[null,null,null,null,null,null,null,null,null,null,null,null,null,null,null,null,259]
[null,null,null,null,null,null,null,null,null,null,null,null,null,null,null,null,260]
[null,null,null,null,null,null,null,null,null,null,null,null,null,null,null,null,261]
[null,null,null,null,null,null,null,null,null,null,null,null,null,null,null,null,262]
[null,null,null,null,null,null,null,null,null,null,null,null,null,null,null,null,263]
[null,null,null,null,null,null,null,null,null,null,null,null,null,null,null,null,264]
[null,null,null,null,null,null,null,null,null,null,null,null,null,null,null,null,265]
[null,null,null,null,null,null,null,null,null,null,null,null,null,null,null,null,266]
[null,null,null,null,null,null,null,null,null,null,null,null,null,null,null,null,267]
[null,null,null,null,null,null,null,null,null,null,null,null,null,null,null,null,268]
[null,null,null,null,null,null,null,null,null,null,null,null,null,null,null,null,269]
[null,null,null,null,null,null,null,null,null,null,null,null,null,null,null,null,270]
[null,null,null,null,null,null,null,null,null,null,null,null,null,null,null,null,271]
[null,null,null,null,null,null,null,null,null,null,null,null,null,null,null,null,272]
[null,null,null,null,null,null,null,null,null,null,null,null,null,null,null,null,273]
[null,null,null,null,null,null,null,null,null,null,null,null,null,null,null,null,274]
[null,null,null,null,null,null,null,null,null,null,null,null,null,null,null,null,275]
[null,null,null,null,null,null,null,null,null,null,null,null,null,null,null,null,276]
[null,null,null,null,null,null,null,null,null,null,null,null,null,null,null,null,277]
[null,null,null,null,null,null,null,null,null,null,null,null,null,null,null,null,278]
[null,null,null,null,null,null,null,null,null,null,null,null,null,null,null,null,279]
[null,null,null,null,null,null,null,null,null,null,null,null,null,null,null,null,280]
[null,null,null,null,null,null,null,null,null,null,null,null,null,null,null,null,281]
[null,null,null,null,null,null,null,null,null,null,null,null,null,null,null,null,282]
[null,null,null,null,null,null,null,null,null,null,null,null,null,null,null,null,283]
[null,null,null,null,null,null,null,null,null,null,null,null,null,null,null,null,284]
[null,null,null,null,null,null,null,null,null,null,null,null,null,null,null,null,285]
[null,null,null,null,null,null,null,null,null,null,null,null,null,null,null,null,286]
[null,null,null,null,null,null,null,null,null,null,null,null,null,null,null,null,287]
[null,null,null,null,null,null,null,null,null,null,null,null,null,null,null,null,288]
[null,null,null,null,null,null,null,null,null,null,null,null,null,null,null,null,289]
[null,null,null,null,null,null,null,null,null,null,null,null,null,null,null,null,290]
[null,null,null,null,null,null,null,null,null,null,null,null,null,null,null,null,291]
[null,null,null,null,null,null,null,null,null,null,null,null,null,null,null,null,292]
[null,null,null,null,null,null,null,null,null,null,null,null,null,null,null,null,293]
[null,null,null,null,null,null,null,null,null,null,null,null,null,null,null,null,294]
[null,null,null,null,null,null,null,null,null,null,null,null,null,null,null,null,295]
[null,null,null,null,null,null,null,null,null,null,null,null,null,null,null,null,296]
[null,null,null,null,null,null,null,null,null,null,null,null,null,null,null,null,297]
[null,null,null,null,null,null,null,null,null,null,null,null,null,null,null,null,298]
[null,null,null,null,null,null,null,null,null,null,null,null,null,null,null,null,299]
[null,null,null,null,null,null,null,null,null,null,null,null,null,null,null,null,300]
[null,null,null,null,null,null,null,null,null,null,null,null,null,null,null,null,301]
[null,null,null,null,null,null,null,null,null,null,null,null,null,null,null,null,302]
[null,null,null,null,null,null,null,null,null,null,null,null,null,null,null,null,303]
[null,null,null,null,null,null,null,null,null,null,null,null,null,null,null,null,304]
[null,null,null,null,null,null,null,null,null,null,null,null,null,null,null,null,305]
[null,null,null,null,null,null,null,null,null,null,null,null,null,null,null,null,306]
[null,null,null,null,null,null,null,null,null,null,null,null,null,null,null,null,307]
[null,null,null,null,null,null,null,null,null,null,null,null,null,null,null,null,308]
[null,null,null,null,null,null,null,null,null,null,null,null,null,null,null,null,309]
[null,null,null,null,null,null,null,null,null,null,null,null,null,null,null,null,{"$f":"IF(OR(Q325=$M$5,Q325=\"\"),\"\",Q325+1)","v":310}]
[null,null,null,null,null,null,null,null,null,null,null,null,null,null,null,null,311]
[null,null,null,null,null,null,null,null,null,null,null,null,null,null,null,null,312]
[null,null,null,null,null,null,null,null,null,null,null,null,null,null,null,null,313]
[null,null,null,null,null,null,null,null,null,null,null,null,null,null,null,null,314]
[null,null,null,null,null,null,null,null,null,null,null,null,null,null,null,null,315]
[null,null,null,null,null,null,null,null,null,null,null,null,null,null,null,null,316]
[null,null,null,null,null,null,null,null,null,null,null,null,null,null,null,null,317]
[null,null,null,null,null,null,null,null,null,null,null,null,null,null,null,null,318]
[null,null,null,null,null,null,null,null,null,null,null,null,null,null,null,null,319]
[null,null,null,null,null,null,null,null,null,null,null,null,null,null,null,null,320]
[null,null,null,null,null,null,null,null,null,null,null,null,null,null,null,null,321]
[null,null,null,null,null,null,null,null,null,null,null,null,null,null,null,null,322]
[null,null,null,null,null,null,null,null,null,null,null,null,null,null,null,null,323]
[null,null,null,null,null,null,null,null,null,null,null,null,null,null,null,null,324]
[null,null,null,null,null,null,null,null,null,null,null,null,null,null,null,null,325]
[null,null,null,null,null,null,null,null,null,null,null,null,null,null,null,null,326]
[null,null,null,null,null,null,null,null,null,null,null,null,null,null,null,null,327]
[null,null,null,null,null,null,null,null,null,null,null,null,null,null,null,null,328]
[null,null,null,null,null,null,null,null,null,null,null,null,null,null,null,null,329]
[null,null,null,null,null,null,null,null,null,null,null,null,null,null,null,null,330]
[null,null,null,null,null,null,null,null,null,null,null,null,null,null,null,null,331]
[null,null,null,null,null,null,null,null,null,null,null,null,null,null,null,null,332]
[null,null,null,null,null,null,null,null,null,null,null,null,null,null,null,null,333]
[null,null,null,null,null,null,null,null,null,null,null,null,null,null,null,null,334]
[null,null,null,null,null,null,null,null,null,null,null,null,null,null,null,null,335]
[null,null,null,null,null,null,null,null,null,null,null,null,null,null,null,null,336]
[null,null,null,null,null,null,null,null,null,null,null,null,null,null,null,null,337]
[null,null,null,null,null,null,null,null,null,null,null,null,null,null,null,null,338]
[null,null,null,null,null,null,null,null,null,null,null,null,null,null,null,null,339]
[null,null,null,null,null,null,null,null,null,null,null,null,null,null,null,null,340]
[null,null,null,null,null,null,null,null,null,null,null,null,null,null,null,null,341]
[null,null,null,null,null,null,null,null,null,null,null,null,null,null,null,null,342]
[null,null,null,null,null,null,null,null,null,null,null,null,null,null,null,null,343]
[null,null,null,null,null,null,null,null,null,null,null,null,null,null,null,null,344]
[null,null,null,null,null,null,null,null,null,null,null,null,null,null,null,null,345]
[null,null,null,null,null,null,null,null,null,null,null,null,null,null,null,null,346]
[null,null,null,null,null,null,null,null,null,null,null,null,null,null,null,null,347]
[null,null,null,null,null,null,null,null,null,null,null,null,null,null,null,null,348]
[null,null,null,null,null,null,null,null,null,null,null,null,null,null,null,null,349]
[null,null,null,null,null,null,null,null,null,null,null,null,null,null,null,null,350]
[null,null,null,null,null,null,null,null,null,null,null,null,null,null,null,null,351]
[null,null,null,null,null,null,null,null,null,null,null,null,null,null,null,null,352]
[null,null,null,null,null,null,null,null,null,null,null,null,null,null,null,null,353]
[null,null,null,null,null,null,null,null,null,null,null,null,null,null,null,null,354]
[null,null,null,null,null,null,null,null,null,null,null,null,null,null,null,null,355]
[null,null,null,null,null,null,null,null,null,null,null,null,null,null,null,null,356]
[null,null,null,null,null,null,null,null,null,null,null,null,null,null,null,null,357]
[null,null,null,null,null,null,null,null,null,null,null,null,null,null,null,null,358]
[null,null,null,null,null,null,null,null,null,null,null,null,null,null,null,null,359]
[null,null,null,null,null,null,null,null,null,null,null,null,null,null,null,null,360]
[null,null,null,null,null,null,null,null,null,null,null,null,null,null,null,null,361]
[null,null,null,null,null,null,null,null,null,null,null,null,null,null,null,null,362]
[null,null,null,null,null,null,null,null,null,null,null,null,null,null,null,null,363]
[null,null,null,null,null,null,null,null,null,null,null,null,null,null,null,null,364]
[null,null,null,null,null,null,null,null,null,null,null,null,null,null,null,null,365]
[null,null,null,null,null,null,null,null,null,null,null,null,null,null,null,null,366]
[null,null,null,null,null,null,null,null,null,null,null,null,null,null,null,null,367]
[null,null,null,null,null,null,null,null,null,null,null,null,null,null,null,null,368]
[null,null,null,null,null,null,null,null,null,null,null,null,null,null,null,null,369]
[null,null,null,null,null,null,null,null,null,null,null,null,null,null,null,null,370]
[null,null,null,null,null,null,null,null,null,null,null,null,null,null,null,null,371]
[null,null,null,null,null,null,null,null,null,null,null,null,null,null,null,null,372]
[null,null,null,null,null,null,null,null,null,null,null,null,null,null,null,null,373]
[null,null,null,null,null,null,null,null,null,null,null,null,null,null,null,null,{"$f":"IF(OR(Q389=$M$5,Q389=\"\"),\"\",Q389+1)","v":374}]
[null,null,null,null,null,null,null,null,null,null,null,null,null,null,null,null,375]
[null,null,null,null,null,null,null,null,null,null,null,null,null,null,null,null,376]
[null,null,null,null,null,null,null,null,null,null,null,null,null,null,null,null,377]
[null,null,null,null,null,null,null,null,null,null,null,null,null,null,null,null,378]
[null,null,null,null,null,null,null,null,null,null,null,null,null,null,null,null,379]
[null,null,null,null,null,null,null,null,null,null,null,null,null,null,null,null,380]
[null,null,null,null,null,null,null,null,null,null,null,null,null,null,null,null,381]
[null,null,null,null,null,null,null,null,null,null,null,null,null,null,null,null,382]
[null,null,null,null,null,null,null,null,null,null,null,null,null,null,null,null,383]
[null,null,null,null,null,null,null,null,null,null,null,null,null,null,null,null,384]
[null,null,null,null,null,null,null,null,null,null,null,null,null,null,null,null,385]
[null,null,null,null,null,null,null,null,null,null,null,null,null,null,null,null,386]
[null,null,null,null,null,null,null,null,null,null,null,null,null,null,null,null,387]
[null,null,null,null,null,null,null,null,null,null,null,null,null,null,null,null,388]
[null,null,null,null,null,null,null,null,null,null,null,null,null,null,null,null,389]
[null,null,null,null,null,null,null,null,null,null,null,null,null,null,null,null,390]
[null,null,null,null,null,null,null,null,null,null,null,null,null,null,null,null,391]
[null,null,null,null,null,null,null,null,null,null,null,null,null,null,null,null,392]
[null,null,null,null,null,null,null,null,null,null,null,null,null,null,null,null,393]
[null,null,null,null,null,null,null,null,null,null,null,null,null,null,null,null,394]
[null,null,null,null,null,null,null,null,null,null,null,null,null,null,null,null,395]
[null,null,null,null,null,null,null,null,null,null,null,null,null,null,null,null,396]
[null,null,null,null,null,null,null,null,null,null,null,null,null,null,null,null,397]
[null,null,null,null,null,null,null,null,null,null,null,null,null,null,null,null,398]
[null,null,null,null,null,null,null,null,null,null,null,null,null,null,null,null,399]
[null,null,null,null,null,null,null,null,null,null,null,null,null,null,null,null,400]
[null,null,null,null,null,null,null,null,null,null,null,null,null,null,null,null,401]
[null,null,null,null,null,null,null,null,null,null,null,null,null,null,null,null,402]
[null,null,null,null,null,null,null,null,null,null,null,null,null,null,null,null,403]
[null,null,null,null,null,null,null,null,null,null,null,null,null,null,null,null,404]
[null,null,null,null,null,null,null,null,null,null,null,null,null,null,null,null,405]
[null,null,null,null,null,null,null,null,null,null,null,null,null,null,null,null,406]
[null,null,null,null,null,null,null,null,null,null,null,null,null,null,null,null,407]
[null,null,null,null,null,null,null,null,null,null,null,null,null,null,null,null,408]
[null,null,null,null,null,null,null,null,null,null,null,null,null,null,null,null,409]
[null,null,null,null,null,null,null,null,null,null,null,null,null,null,null,null,410]
[null,null,null,null,null,null,null,null,null,null,null,null,null,null,null,null,411]
[null,null,null,null,null,null,null,null,null,null,null,null,null,null,null,null,412]
[null,null,null,null,null,null,null,null,null,null,null,null,null,null,null,null,413]
[null,null,null,null,null,null,null,null,null,null,null,null,null,null,null,null,414]
[null,null,null,null,null,null,null,null,null,null,null,null,null,null,null,null,415]
[null,null,null,null,null,null,null,null,null,null,null,null,null,null,null,null,416]
[null,null,null,null,null,null,null,null,null,null,null,null,null,null,null,null,417]
[null,null,null,null,null,null,null,null,null,null,null,null,null,null,null,null,418]
[null,null,null,null,null,null,null,null,null,null,null,null,null,null,null,null,419]
[null,null,null,null,null,null,null,null,null,null,null,null,null,null,null,null,420]
[null,null,null,null,null,null,null,null,null,null,null,null,null,null,null,null,421]
[null,null,null,null,null,null,null,null,null,null,null,null,null,null,null,null,422]
[null,null,null,null,null,null,null,null,null,null,null,null,null,null,null,null,423]
[null,null,null,null,null,null,null,null,null,null,null,null,null,null,null,null,424]
[null,null,null,null,null,null,null,null,null,null,null,null,null,null,null,null,425]
[null,null,null,null,null,null,null,null,null,null,null,null,null,null,null,null,426]
[null,null,null,null,null,null,null,null,null,null,null,null,null,null,null,null,427]
[null,null,null,null,null,null,null,null,null,null,null,null,null,null,null,null,428]
[null,null,null,null,null,null,null,null,null,null,null,null,null,null,null,null,429]
[null,null,null,null,null,null,null,null,null,null,null,null,null,null,null,null,430]
[null,null,null,null,null,null,null,null,null,null,null,null,null,null,null,null,431]
[null,null,null,null,null,null,null,null,null,null,null,null,null,null,null,null,432]
[null,null,null,null,null,null,null,null,null,null,null,null,null,null,null,null,433]
[null,null,null,null,null,null,null,null,null,null,null,null,null,null,null,null,434]
[null,null,null,null,null,null,null,null,null,null,null,null,null,null,null,null,435]
[null,null,null,null,null,null,null,null,null,null,null,null,null,null,null,null,436]
[null,null,null,null,null,null,null,null,null,null,null,null,null,null,null,null,437]
[null,null,null,null,null,null,null,null,null,null,null,null,null,null,null,null,{"$f":"IF(OR(Q453=$M$5,Q453=\"\"),\"\",Q453+1)","v":438}]
[null,null,null,null,null,null,null,null,null,null,null,null,null,null,null,null,439]
[null,null,null,null,null,null,null,null,null,null,null,null,null,null,null,null,440]
[null,null,null,null,null,null,null,null,null,null,null,null,null,null,null,null,441]
[null,null,null,null,null,null,null,null,null,null,null,null,null,null,null,null,442]
[null,null,null,null,null,null,null,null,null,null,null,null,null,null,null,null,443]
[null,null,null,null,null,null,null,null,null,null,null,null,null,null,null,null,444]
[null,null,null,null,null,null,null,null,null,null,null,null,null,null,null,null,445]
[null,null,null,null,null,null,null,null,null,null,null,null,null,null,null,null,446]
[null,null,null,null,null,null,null,null,null,null,null,null,null,null,null,null,447]
[null,null,null,null,null,null,null,null,null,null,null,null,null,null,null,null,448]
[null,null,null,null,null,null,null,null,null,null,null,null,null,null,null,null,449]
[null,null,null,null,null,null,null,null,null,null,null,null,null,null,null,null,450]
[null,null,null,null,null,null,null,null,null,null,null,null,null,null,null,null,451]
[null,null,null,null,null,null,null,null,null,null,null,null,null,null,null,null,452]
[null,null,null,null,null,null,null,null,null,null,null,null,null,null,null,null,453]
[null,null,null,null,null,null,null,null,null,null,null,null,null,null,null,null,454]
[null,null,null,null,null,null,null,null,null,null,null,null,null,null,null,null,455]
[null,null,null,null,null,null,null,null,null,null,null,null,null,null,null,null,456]
[null,null,null,null,null,null,null,null,null,null,null,null,null,null,null,null,457]
[null,null,null,null,null,null,null,null,null,null,null,null,null,null,null,null,458]
[null,null,null,null,null,null,null,null,null,null,null,null,null,null,null,null,459]
[null,null,null,null,null,null,null,null,null,null,null,null,null,null,null,null,460]
[null,null,null,null,null,null,null,null,null,null,null,null,null,null,null,null,461]
[null,null,null,null,null,null,null,null,null,null,null,null,null,null,null,null,462]
[null,null,null,null,null,null,null,null,null,null,null,null,null,null,null,null,463]
[null,null,null,null,null,null,null,null,null,null,null,null,null,null,null,null,464]
[null,null,null,null,null,null,null,null,null,null,null,null,null,null,null,null,465]
[null,null,null,null,null,null,null,null,null,null,null,null,null,null,null,null,466]
[null,null,null,null,null,null,null,null,null,null,null,null,null,null,null,null,467]
[null,null,null,null,null,null,null,null,null,null,null,null,null,null,null,null,468]
[null,null,null,null,null,null,null,null,null,null,null,null,null,null,null,null,469]
[null,null,null,null,null,null,null,null,null,null,null,null,null,null,null,null,470]
[null,null,null,null,null,null,null,null,null,null,null,null,null,null,null,null,471]
[null,null,null,null,null,null,null,null,null,null,null,null,null,null,null,null,472]
[null,null,null,null,null,null,null,null,null,null,null,null,null,null,null,null,473]
[null,null,null,null,null,null,null,null,null,null,null,null,null,null,null,null,474]
[null,null,null,null,null,null,null,null,null,null,null,null,null,null,null,null,475]
[null,null,null,null,null,null,null,null,null,null,null,null,null,null,null,null,476]
[null,null,null,null,null,null,null,null,null,null,null,null,null,null,null,null,477]
[null,null,null,null,null,null,null,null,null,null,null,null,null,null,null,null,478]
[null,null,null,null,null,null,null,null,null,null,null,null,null,null,null,null,479]
[null,null,null,null,null,null,null,null,null,null,null,null,null,null,null,null,480]
[null,null,null,null,null,null,null,null,null,null,null,null,null,null,null,null,481]
[null,null,null,null,null,null,null,null,null,null,null,null,null,null,null,null,482]
[null,null,null,null,null,null,null,null,null,null,null,null,null,null,null,null,483]
[null,null,null,null,null,null,null,null,null,null,null,null,null,null,null,null,484]
[null,null,null,null,null,null,null,null,null,null,null,null,null,null,null,null,485]
[null,null,null,null,null,null,null,null,null,null,null,null,null,null,null,null,486]
[null,null,null,null,null,null,null,null,null,null,null,null,null,null,null,null,487]
[null,null,null,null,null,null,null,null,null,null,null,null,null,null,null,null,488]
[null,null,null,null,null,null,null,null,null,null,null,null,null,null,null,null,489]
[null,null,null,null,null,null,null,null,null,null,null,null,null,null,null,null,490]
[null,null,null,null,null,null,null,null,null,null,null,null,null,null,null,null,491]
[null,null,null,null,null,null,null,null,null,null,null,null,null,null,null,null,492]
[null,null,null,null,null,null,null,null,null,null,null,null,null,null,null,null,493]
[null,null,null,null,null,null,null,null,null,null,null,null,null,null,null,null,494]
[null,null,null,null,null,null,null,null,null,null,null,null,null,null,null,null,495]
[null,null,null,null,null,null,null,null,null,null,null,null,null,null,null,null,496]
[null,null,null,null,null,null,null,null,null,null,null,null,null,null,null,null,497]
[null,null,null,null,null,null,null,null,null,null,null,null,null,null,null,null,498]
[null,null,null,null,null,null,null,null,null,null,null,null,null,null,null,null,499]
[null,null,null,null,null,null,null,null,null,null,null,null,null,null,null,null,500]
[null,null,null,null,null,null,null,null,null,null,null,null,null,null,null,null,501]
[null,null,null,null,null,null,null,null,null,null,null,null,null,null,null,null,{"$f":"IF(OR(Q517=$M$5,Q517=\"\"),\"\",Q517+1)","v":502}]
[null,null,null,null,null,null,null,null,null,null,null,null,null,null,null,null,503]
[null,null,null,null,null,null,null,null,null,null,null,null,null,null,null,null,504]
[null,null,null,null,null,null,null,null,null,null,null,null,null,null,null,null,505]
[null,null,null,null,null,null,null,null,null,null,null,null,null,null,null,null,506]
[null,null,null,null,null,null,null,null,null,null,null,null,null,null,null,null,507]
[null,null,null,null,null,null,null,null,null,null,null,null,null,null,null,null,508]
[null,null,null,null,null,null,null,null,null,null,null,null,null,null,null,null,509]
[null,null,null,null,null,null,null,null,null,null,null,null,null,null,null,null,510]
[null,null,null,null,null,null,null,null,null,null,null,null,null,null,null,null,511]
[null,null,null,null,null,null,null,null,null,null,null,null,null,null,null,null,512]
[null,null,null,null,null,null,null,null,null,null,null,null,null,null,null,null,513]
[null,null,null,null,null,null,null,null,null,null,null,null,null,null,null,null,514]
[null,null,null,null,null,null,null,null,null,null,null,null,null,null,null,null,515]
[null,null,null,null,null,null,null,null,null,null,null,null,null,null,null,null,516]
[null,null,null,null,null,null,null,null,null,null,null,null,null,null,null,null,517]
[null,null,null,null,null,null,null,null,null,null,null,null,null,null,null,null,518]
[null,null,null,null,null,null,null,null,null,null,null,null,null,null,null,null,519]
[null,null,null,null,null,null,null,null,null,null,null,null,null,null,null,null,520]
[null,null,null,null,null,null,null,null,null,null,null,null,null,null,null,null,521]
[null,null,null,null,null,null,null,null,null,null,null,null,null,null,null,null,522]
[null,null,null,null,null,null,null,null,null,null,null,null,null,null,null,null,523]
[null,null,null,null,null,null,null,null,null,null,null,null,null,null,null,null,524]
[null,null,null,null,null,null,null,null,null,null,null,null,null,null,null,null,525]
[null,null,null,null,null,null,null,null,null,null,null,null,null,null,null,null,526]
[null,null,null,null,null,null,null,null,null,null,null,null,null,null,null,null,527]
[null,null,null,null,null,null,null,null,null,null,null,null,null,null,null,null,528]
[null,null,null,null,null,null,null,null,null,null,null,null,null,null,null,null,529]
[null,null,null,null,null,null,null,null,null,null,null,null,null,null,null,null,530]
[null,null,null,null,null,null,null,null,null,null,null,null,null,null,null,null,531]
[null,null,null,null,null,null,null,null,null,null,null,null,null,null,null,null,532]
[null,null,null,null,null,null,null,null,null,null,null,null,null,null,null,null,533]
[null,null,null,null,null,null,null,null,null,null,null,null,null,null,null,null,534]
[null,null,null,null,null,null,null,null,null,null,null,null,null,null,null,null,535]
[null,null,null,null,null,null,null,null,null,null,null,null,null,null,null,null,536]
[null,null,null,null,null,null,null,null,null,null,null,null,null,null,null,null,537]
[null,null,null,null,null,null,null,null,null,null,null,null,null,null,null,null,538]
[null,null,null,null,null,null,null,null,null,null,null,null,null,null,null,null,539]
[null,null,null,null,null,null,null,null,null,null,null,null,null,null,null,null,540]
[null,null,null,null,null,null,null,null,null,null,null,null,null,null,null,null,541]
[null,null,null,null,null,null,null,null,null,null,null,null,null,null,null,null,542]
[null,null,null,null,null,null,null,null,null,null,null,null,null,null,null,null,543]
[null,null,null,null,null,null,null,null,null,null,null,null,null,null,null,null,544]
[null,null,null,null,null,null,null,null,null,null,null,null,null,null,null,null,545]
[null,null,null,null,null,null,null,null,null,null,null,null,null,null,null,null,546]
[null,null,null,null,null,null,null,null,null,null,null,null,null,null,null,null,547]
[null,null,null,null,null,null,null,null,null,null,null,null,null,null,null,null,548]
[null,null,null,null,null,null,null,null,null,null,null,null,null,null,null,null,549]
[null,null,null,null,null,null,null,null,null,null,null,null,null,null,null,null,550]
[null,null,null,null,null,null,null,null,null,null,null,null,null,null,null,null,551]
[null,null,null,null,null,null,null,null,null,null,null,null,null,null,null,null,552]
[null,null,null,null,null,null,null,null,null,null,null,null,null,null,null,null,553]
[null,null,null,null,null,null,null,null,null,null,null,null,null,null,null,null,554]
[null,null,null,null,null,null,null,null,null,null,null,null,null,null,null,null,555]
[null,null,null,null,null,null,null,null,null,null,null,null,null,null,null,null,556]
[null,null,null,null,null,null,null,null,null,null,null,null,null,null,null,null,557]
[null,null,null,null,null,null,null,null,null,null,null,null,null,null,null,null,558]
[null,null,null,null,null,null,null,null,null,null,null,null,null,null,null,null,559]
[null,null,null,null,null,null,null,null,null,null,null,null,null,null,null,null,560]
[null,null,null,null,null,null,null,null,null,null,null,null,null,null,null,null,561]
[null,null,null,null,null,null,null,null,null,null,null,null,null,null,null,null,562]
[null,null,null,null,null,null,null,null,null,null,null,null,null,null,null,null,563]
[null,null,null,null,null,null,null,null,null,null,null,null,null,null,null,null,564]
[null,null,null,null,null,null,null,null,null,null,null,null,null,null,null,null,565]
[null,null,null,null,null,null,null,null,null,null,null,null,null,null,null,null,{"$f":"IF(OR(Q581=$M$5,Q581=\"\"),\"\",Q581+1)","v":566}]
[null,null,null,null,null,null,null,null,null,null,null,null,null,null,null,null,567]
[null,null,null,null,null,null,null,null,null,null,null,null,null,null,null,null,568]
[null,null,null,null,null,null,null,null,null,null,null,null,null,null,null,null,569]
[null,null,null,null,null,null,null,null,null,null,null,null,null,null,null,null,570]
[null,null,null,null,null,null,null,null,null,null,null,null,null,null,null,null,571]
[null,null,null,null,null,null,null,null,null,null,null,null,null,null,null,null,572]
[null,null,null,null,null,null,null,null,null,null,null,null,null,null,null,null,573]
[null,null,null,null,null,null,null,null,null,null,null,null,null,null,null,null,574]
[null,null,null,null,null,null,null,null,null,null,null,null,null,null,null,null,575]
[null,null,null,null,null,null,null,null,null,null,null,null,null,null,null,null,576]
[null,null,null,null,null,null,null,null,null,null,null,null,null,null,null,null,577]
[null,null,null,null,null,null,null,null,null,null,null,null,null,null,null,null,578]
[null,null,null,null,null,null,null,null,null,null,null,null,null,null,null,null,579]
[null,null,null,null,null,null,null,null,null,null,null,null,null,null,null,null,580]
[null,null,null,null,null,null,null,null,null,null,null,null,null,null,null,null,581]
[null,null,null,null,null,null,null,null,null,null,null,null,null,null,null,null,582]
[null,null,null,null,null,null,null,null,null,null,null,null,null,null,null,null,583]
[null,null,null,null,null,null,null,null,null,null,null,null,null,null,null,null,584]
[null,null,null,null,null,null,null,null,null,null,null,null,null,null,null,null,585]
[null,null,null,null,null,null,null,null,null,null,null,null,null,null,null,null,586]
[null,null,null,null,null,null,null,null,null,null,null,null,null,null,null,null,587]
[null,null,null,null,null,null,null,null,null,null,null,null,null,null,null,null,588]
[null,null,null,null,null,null,null,null,null,null,null,null,null,null,null,null,589]
[null,null,null,null,null,null,null,null,null,null,null,null,null,null,null,null,590]
[null,null,null,null,null,null,null,null,null,null,null,null,null,null,null,null,591]
[null,null,null,null,null,null,null,null,null,null,null,null,null,null,null,null,592]
[null,null,null,null,null,null,null,null,null,null,null,null,null,null,null,null,593]
[null,null,null,null,null,null,null,null,null,null,null,null,null,null,null,null,594]
[null,null,null,null,null,null,null,null,null,null,null,null,null,null,null,null,595]
[null,null,null,null,null,null,null,null,null,null,null,null,null,null,null,null,596]
[null,null,null,null,null,null,null,null,null,null,null,null,null,null,null,null,597]
[null,null,null,null,null,null,null,null,null,null,null,null,null,null,null,null,598]
[null,null,null,null,null,null,null,null,null,null,null,null,null,null,null,null,599]
[null,null,null,null,null,null,null,null,null,null,null,null,null,null,null,null,600]
[null,null,null,null,null,null,null,null,null,null,null,null,null,null,null,null,601]
[null,null,null,null,null,null,null,null,null,null,null,null,null,null,null,null,602]
[null,null,null,null,null,null,null,null,null,null,null,null,null,null,null,null,603]
[null,null,null,null,null,null,null,null,null,null,null,null,null,null,null,null,604]
[null,null,null,null,null,null,null,null,null,null,null,null,null,null,null,null,605]
[null,null,null,null,null,null,null,null,null,null,null,null,null,null,null,null,606]
[null,null,null,null,null,null,null,null,null,null,null,null,null,null,null,null,607]
[null,null,null,null,null,null,null,null,null,null,null,null,null,null,null,null,608]
[null,null,null,null,null,null,null,null,null,null,null,null,null,null,null,null,609]
[null,null,null,null,null,null,null,null,null,null,null,null,null,null,null,null,610]

{"sheet":"TS Old","index":1,"n_rows":305,"n_cols":17,"rows_kept":305,"cut":false,"hidden":false,"merged":[[45,0,45,3],[47,0,48,9],[17,7,18,7],[17,8,18,8],[17,9,18,9],[19,7,20,7],[19,8,20,8],[19,9,20,9],[13,7,14,7],[13,8,14,8],[13,9,14,9],[15,7,16,7],[15,8,16,8],[15,9,16,9],[8,4,8,5],[10,4,10,5],[12,0,13,0],[12,1,13,1],[12,2,13,2],[12,3,13,3],[12,4,13,4],[12,5,13,5],[2,4,2,5],[4,4,4,5],[4,13,4,15],[5,13,5,15],[6,4,6,5],[6,13,6,15]]}
[]
[null,null,null,null,null,null,null,null,null,null,null,null,null,null,null,null,{"$f":"VLOOKUP(E7,[2]!Table2[#Data],7,0)","v":{"$error":"#REF!"}}]
["Month:",null,null,null,"2018-06-01"]
[]
["Employee Code:",null,null,null,2100113,null,null,null,null,null,null,null,{"$f":"COUNTA(_b12[Name])","v":37},"عدد الأسماء المطلوبين"]
[null,null,null,null,null,null,null,null,null,null,null,null,"الكل","الاسم المطلوب طباعته",null,null,"الكل"]
["Staff Name:",null,null,null,{"$f":"VLOOKUP(E5,data!B6:AR42,2,0)","v":"Tajene"},null,null,null,null,null,null,null,1,"رقم الاسم الذي ستتم طباعته",null,null,1]
[null,null,null,null,null,null,null,null,null,null,null,null,"إلى رقم",null,"طباعة من رقم",null,{"$f":"IF(OR(Q7=$M$5,Q7=\"\"),\"\",Q7+1)","v":2}]
["Staff Position:",null,null,null,{"$f":"VLOOKUP(E5,data!B6:AR42,3,0)","v":"Ambulance Driver"},null,null,null,null,null,null,null,null,null,null,null,3]
[null,null,null,null,null,null,null,null,null,null,null,null,null,null,null,null,4]
["Staff Field Location:",null,null,null,{"$f":"VLOOKUP(E5,data!B6:AR42,5,0)","v":"A s"},null,null,null,null,null,null,null,null,null,null,null,5]
[null,null,null,null,null,null,null,null,null,null,null,null,null,null,null,null,6]
["Pay Period Day",0,"Date","Start Time","Finish Time","Hours Worked",null,"Grant code","End Date","% to Charge",null,null,null,null,null,null,7]
[null,null,null,null,null,null,null,"FP","2018-12-31",{"$f":"VLOOKUP(E5,data!B6:AR42,27,0)","v":0},null,null,null,null,null,null,8]
[1,{"$f":"TEXT(C15,\"[$-809]ddd;@\")","v":"Fri"},{"$f":"E3","v":"2018-06-01"},{"$f":"IF(TEXT($C15,\"[$-809]ddd;@\")<>\"\",IF(TEXT($C15,\"[$-809]ddd;@\")=\"FRI\",\"0:00\",\"08:00\"),IF(TEXT($C15,\"[$-809]ddd;@\")=\"\",\"\",\"08:00\"))","v":"0:00"},{"$f":"IF(TEXT($C15,\"[$-809]ddd;@\")<>\"\",IF(TEXT($C15,\"[$-809]ddd;@\")=\"FRI\",\"0:00\",\"16:00\"),IF(TEXT($C15,\"[$-809]ddd;@\")=\"\",\"\",\"08:00\"))","v":"0:00"},{"$f":"IF(OR(TEXT($C15,\"[$-809]ddd;@\")=\"FRI\",TEXT($C15,\"[$-809]ddd;@\")=\"FRI\"),\"0:00:00\",E15-D15)","v":"0:00:00"},null,null,null,null,null,null,null,null,null,null,9]
[2,{"$f":"TEXT(C16,\"[$-809]ddd;@\")","v":"Sat"},{"$f":"C15+1","v":"2018-06-02"},"08:00","16:00",{"$f":"IF(OR(TEXT($C16,\"[$-809]ddd;@\")=\"FRI\",TEXT($C16,\"[$-809]ddd;@\")=\"FRI\"),\"0:00:00\",E16-D16)","v":"08:00:00"},null,"EPIU","2018-11-14",{"$f":"VLOOKUP(E5,data!B6:AR42,28,0)","v":0},null,null,null,null,null,null,10]
[3,{"$f":"TEXT(C17,\"[$-809]ddd;@\")","v":"Sun"},{"$f":"C16+1","v":"2018-06-03"},"08:00","16:00","08:00:00",null,null,null,null,null,null,null,null,null,null,11]
[4,"Mon","2018-06-04","08:00","16:00","08:00:00",null,"0649","2019-05-14",{"$f":"VLOOKUP(E5,data!B6:AR42,29,0)","v":0},null,null,null,null,null,null,12]
[5,"Tue","2018-06-05","08:00","16:00","08:00:00",null,null,null,null,null,null,null,null,null,null,13]
[6,"Wed","2018-06-06","08:00","16:00","08:00:00",null,"QC-0571","2019-03-19",{"$f":"VLOOKUP(E5,data!B6:AR42,30,0)","v":0},null,null,null,null,null,null,14]
[7,"Thu","2018-06-07","08:00","16:00","08:00:00",null,null,null,null,null,null,null,null,null,null,15]
[8,"Fri","2018-06-08","0:00","0:00","0:00:00",null,"1885","2018-10-02",{"$f":"VLOOKUP(E5,data!B6:AR42,31,0)","v":0},null,null,null,null,null,null,16]
[9,"Sat","2018-06-09","08:00","16:00","08:00:00",null,1898,"2018-10-02",{"$f":"VLOOKUP(E5,data!B6:AR42,32,0)","v":1},null,null,null,null,null,null,17]
[10,"Sun","2018-06-10","08:00","16:00","08:00:00",null,"8367","2018-09-14",{"$f":"VLOOKUP(E5,data!B6:AR42,40,0)","v":0},null,null,null,null,null,null,18]
[11,"Mon","2018-06-11","08:00","16:00","08:00:00",null,5205,"2018-12-15",{"$f":"VLOOKUP(E5,data!B6:AR42,42,0)","v":0},null,null,null,null,null,null,19]
[12,"Tue","2018-06-12","08:00","16:00","08:00:00",null,"1893","2018-10-02",{"$f":"VLOOKUP(E5,data!B6:AR42,33,0)","v":0},null,null,null,null,null,null,20]
[13,"Wed","2018-06-13","08:00","16:00","08:00:00",null,"s",null,{"$f":"VLOOKUP(E5,data!B6:AR42,38,0)","v":0},null,null,null,null,null,null,21]
[14,"Thu","2018-06-14","08:00","16:00","08:00:00",null,714,"2018-08-14",{"$f":"VLOOKUP(E5,data!B6:AR42,34,0)","v":0},null,null,null,null,null,null,22]
[15,"Fri","2018-06-15","0:00","0:00","0:00:00",null,649,"2019-04-14",{"$f":"VLOOKUP(E5,data!B6:AR42,35,0)","v":0},null,null,null,null,null,null,23]
[16,"Sat","2018-06-16","08:00","16:00","08:00:00",null,7196,"2018-06-30",{"$f":"VLOOKUP(E5,data!B6:AR42,36,0)","v":0},null,null,null,null,null,null,24]
[17,"Sun","2018-06-17","08:00","16:00","08:00:00",null,3798,"2018-10-15",{"$f":"VLOOKUP(E5,data!B6:AR42,39,0)","v":0},null,null,null,null,null,null,25]
[18,"Mon","2018-06-18","08:00","16:00","08:00:00",null,573,"2019-03-19",{"$f":"VLOOKUP(E5,data!B6:AR42,37,0)","v":0},null,null,null,null,null,null,26]
[19,"Tue","2018-06-19","08:00","16:00","08:00:00",null,1473,"2018-08-31",{"$f":"VLOOKUP(E5,data!B6:AR42,41,0)","v":0},null,null,null,null,null,null,27]
[20,"Wed","2018-06-20","08:00","16:00","08:00:00",null,null,null,null,null,null,null,null,null,null,28]
[21,"Thu","2018-06-21","08:00","16:00","08:00:00",null,null,null,null,null,null,null,null,null,null,29]
[22,"Fri","2018-06-22","0:00","0:00","0:00:00",null,null,null,null,null,null,null,null,null,null,30]
[23,"Sat","2018-06-23","08:00","16:00","08:00:00",null,null,null,null,null,null,null,null,null,null,31]
[24,"Sun","2018-06-24","08:00","16:00","08:00:00",null,"Total",null,{"$f":"SUM(J14:J37)","v":1},null,null,null,null,null,null,32]
[25,"Mon","2018-06-25","08:00","16:00","08:00:00",null,null,null,null,null,null,null,null,null,null,33]
[26,"Tue","2018-06-26","08:00","16:00","08:00:00",null,null,null,null,null,null,null,null,null,null,34]
[27,"Wed","2018-06-27","08:00","16:00","08:00:00",null,null,null,null,null,null,null,null,null,null,35]
[{"$f":"IF($B42=\"\",\"\",$A41+1)","v":28},{"$f":"IF($C42=\"\",\"\",TEXT(C42,\"[$-809]ddd;@\"))","v":"Thu"},{"$f":"IF($C41=\"\",\"\",IF(MONTH($C41+1)<>MONTH($E$3),\"\",$C41+1))","v":"2018-06-28"},"08:00","16:00",{"$f":"IF($C42=\"\",\"\",IF(OR(TEXT($C42,\"[$-809]ddd;@\")=\"FRI\",TEXT($C42,\"[$-809]ddd;@\")=\"FRI\"),\"0:00:00\",E42-D42))","v":"08:00:00"},null,null,null,null,null,null,null,null,null,null,36]
[{"$f":"IF($B43=\"\",\"\",$A42+1)","v":29},{"$f":"IF($C43=\"\",\"\",TEXT(C43,\"[$-809]ddd;@\"))","v":"Fri"},{"$f":"IF($C42=\"\",\"\",IF(MONTH($C42+1)<>MONTH($E$3),\"\",$C42+1))","v":"2018-06-29"},"0:00","0:00",{"$f":"IF($C43=\"\",\"\",IF(OR(TEXT($C43,\"[$-809]ddd;@\")=\"FRI\",TEXT($C43,\"[$-809]ddd;@\")=\"FRI\"),\"0:00:00\",E43-D43))","v":"0:00:00"},null,null,null,null,null,null,null,null,null,null,37]
[30,"Sat","2018-06-30",{"$f":"IF(TEXT($C44,\"[$-809]ddd;@\")<>\"\",IF(TEXT($C44,\"[$-809]ddd;@\")=\"FRI\",\"0:00\",\"08:00\"),IF(TEXT($C44,\"[$-809]ddd;@\")=\"\",\"\",\"08:00\"))","v":"08:00"},{"$f":"IF(TEXT($C44,\"[$-809]ddd;@\")<>\"\",IF(TEXT($C44,\"[$-809]ddd;@\")=\"FRI\",\"0:00\",\"16:00\"),IF(TEXT($C44,\"[$-809]ddd;@\")=\"\",\"\",\"08:00\"))","v":"16:00"},"08:00:00",null,null,null,null,null,null,null,null,null,null,""]
["","","","","","",null,null,null,null,null,null,null,null,null,null,""]
["Total Hours Worked",null,null,null,null,{"$f":"SUM(F15:F45)","v":8.3333333333333304},null,null,null,null,null,null,null,null,null,null,""]
[null,null,null,null,null,null,null,null,null,null,null,null,null,null,null,null,""]
["The signatures on this time sheet attests to the fact that the percentage allocation to grant agreements is a reasonable and true estimation of the time and effort dedicatdto each project for the period being reported.",null,null,null,null,null,null,null,null,null,null,null,null,null,null,null,""]
[null,null,null,null,null,null,null,null,null,null,null,null,null,null,null,null,""]
[null,null,null,null,null,null,null,null,null,null,null,null,null,null,null,null,""]
["Employee Signature",null,null,null,null,null,null,null,"Supervisor Signature",null,null,null,null,null,null,null,""]
[null,null,null,null,null,null,null,null,null,null,null,null,null,null,null,null,""]
[null,null,null,null,null,null,null,null,null,null,null,null,null,null,null,null,""]
[null,null,null,null,null,null,null,null,null,null,null,null,null,null,null,null,""]
[null,null,null,null,null,null,null,null,null,null,null,null,null,null,null,null,""]
[null,null,null,null,null,null,null,null,null,null,null,null,null,null,null,null,""]
[null,null,null,null,null,null,null,null,null,null,null,null,null,null,null,null,""]
[null,null,null,null,null,null,null,null,null,null,null,null,null,null,null,null,""]
[null,null,null,null,null,null,null,null,null,null,null,null,null,null,null,null,""]
[null,null,null,null,null,null,null,null,null,null,null,null,null,null,null,null,""]
[{"$f":"E7","v":"Tajene"},null,null,null,null,null,null,null,{"$f":"VLOOKUP(E5,data!B6:AR42,26,0)","v":"Dr"},null,null,null,null,null,null,null,""]
[null,null,null,null,null,null,null,null,null,null,null,null,null,null,null,null,""]
[null,null,null,null,null,null,null,null,null,null,null,null,null,null,null,null,""]
[null,null,null,null,null,null,null,null,null,null,null,null,null,null,null,null,""]
[null,null,null,null,null,null,null,null,null,null,null,null,null,null,null,null,""]
[null,null,null,null,null,null,null,null,null,null,null,null,null,null,null,null,""]
[null,null,null,null,null,null,null,null,null,null,null,null,null,null,null,null,""]
[null,null,null,null,null,null,null,null,null,null,null,null,null,null,null,null,""]
[null,null,null,null,null,null,null,null,null,null,null,null,null,null,null,null,""]
[null,null,null,null,null,null,null,null,null,null,null,null,null,null,null,null,""]
[null,null,null,null,null,null,null,null,null,null,null,null,null,null,null,null,""]
[null,null,null,null,null,null,null,null,null,null,null,null,null,null,null,null,{"$f":"IF(OR(Q71=$M$5,Q71=\"\"),\"\",Q71+1)","v":""}]
[null,null,null,null,null,null,null,null,null,null,null,null,null,null,null,null,""]
[null,null,null,null,null,null,null,null,null,null,null,null,null,null,null,null,""]
[null,null,null,null,null,null,null,null,null,null,null,null,null,null,null,null,""]
[null,null,null,null,null,null,null,null,null,null,null,null,null,null,null,null,""]
[null,null,null,null,null,null,null,null,null,null,null,null,null,null,null,null,""]
[null,null,null,null,null,null,null,null,null,null,null,null,null,null,null,null,""]
[null,null,null,null,null,null,null,null,null,null,null,null,null,null,null,null,""]
[null,null,null,null,null,null,null,null,null,null,null,null,null,null,null,null,""]
[null,null,null,null,null,null,null,null,null,null,null,null,null,null,null,null,""]
[null,null,null,null,null,null,null,null,null,null,null,null,null,null,null,null,""]
[null,null,null,null,null,null,null,null,null,null,null,null,null,null,null,null,""]
[null,null,null,null,null,null,null,null,null,null,null,null,null,null,null,null,""]
[null,null,null,null,null,null,null,null,null,null,null,null,null,null,null,null,""]
[null,null,null,null,null,null,null,null,null,null,null,null,null,null,null,null,""]
[null,null,null,null,null,null,null,null,null,null,null,null,null,null,null,null,""]
[null,null,null,null,null,null,null,null,null,null,null,null,null,null,null,null,""]
[null,null,null,null,null,null,null,null,null,null,null,null,null,null,null,null,""]
[null,null,null,null,null,null,null,null,null,null,null,null,null,null,null,null,""]
[null,null,null,null,null,null,null,null,null,null,null,null,null,null,null,null,""]
[null,null,null,null,null,null,null,null,null,null,null,null,null,null,null,null,""]
[null,null,null,null,null,null,null,null,null,null,null,null,null,null,null,null,""]
[null,null,null,null,null,null,null,null,null,null,null,null,null,null,null,null,""]
[null,null,null,null,null,null,null,null,null,null,null,null,null,null,null,null,""]
[null,null,null,null,null,null,null,null,null,null,null,null,null,null,null,null,""]
[null,null,null,null,null,null,null,null,null,null,null,null,null,null,null,null,""]
[null,null,null,null,null,null,null,null,null,null,null,null,null,null,null,null,""]
[null,null,null,null,null,null,null,null,null,null,null,null,null,null,null,null,""]
[null,null,null,null,null,null,null,null,null,null,null,null,null,null,null,null,""]
[null,null,null,null,null,null,null,null,null,null,null,null,null,null,null,null,""]
[null,null,null,null,null,null,null,null,null,null,null,null,null,null,null,null,""]
[null,null,null,null,null,null,null,null,null,null,null,null,null,null,null,null,""]
[null,null,null,null,null,null,null,null,null,null,null,null,null,null,null,null,""]
[null,null,null,null,null,null,null,null,null,null,null,null,null,null,null,null,""]
[null,null,null,null,null,null,null,null,null,null,null,null,null,null,null,null,""]
[null,null,null,null,null,null,null,null,null,null,null,null,null,null,null,null,""]
[null,null,null,null,null,null,null,null,null,null,null,null,null,null,null,null,""]
[null,null,null,null,null,null,null,null,null,null,null,null,null,null,null,null,""]
[null,null,null,null,null,null,null,null,null,null,null,null,null,null,null,null,""]
[null,null,null,null,null,null,null,null,null,null,null,null,null,null,null,null,""]
[null,null,null,null,null,null,null,null,null,null,null,null,null,null,null,null,""]
[null,null,null,null,null,null,null,null,null,null,null,null,null,null,null,null,""]
[null,null,null,null,null,null,null,null,null,null,null,null,null,null,null,null,""]
[null,null,null,null,null,null,null,null,null,null,null,null,null,null,null,null,""]
[null,null,null,null,null,null,null,null,null,null,null,null,null,null,null,null,""]
[null,null,null,null,null,null,null,null,null,null,null,null,null,null,null,null,""]
[null,null,null,null,null,null,null,null,null,null,null,null,null,null,null,null,""]
[null,null,null,null,null,null,null,null,null,null,null,null,null,null,null,null,""]
[null,null,null,null,null,null,null,null,null,null,null,null,null,null,null,null,""]
[null,null,null,null,null,null,null,null,null,null,null,null,null,null,null,null,""]
[null,null,null,null,null,null,null,null,null,null,null,null,null,null,null,null,""]
[null,null,null,null,null,null,null,null,null,null,null,null,null,null,null,null,""]
[null,null,null,null,null,null,null,null,null,null,null,null,null,null,null,null,""]
[null,null,null,null,null,null,null,null,null,null,null,null,null,null,null,null,""]
[null,null,null,null,null,null,null,null,null,null,null,null,null,null,null,null,""]
[null,null,null,null,null,null,null,null,null,null,null,null,null,null,null,null,""]
[null,null,null,null,null,null,null,null,null,null,null,null,null,null,null,null,""]
[null,null,null,null,null,null,null,null,null,null,null,null,null,null,null,null,""]
[null,null,null,null,null,null,null,null,null,null,null,null,null,null,null,null,""]
[null,null,null,null,null,null,null,null,null,null,null,null,null,null,null,null,""]
[null,null,null,null,null,null,null,null,null,null,null,null,null,null,null,null,""]
[null,null,null,null,null,null,null,null,null,null,null,null,null,null,null,null,""]
[null,null,null,null,null,null,null,null,null,null,null,null,null,null,null,null,""]
[null,null,null,null,null,null,null,null,null,null,null,null,null,null,null,null,""]
[null,null,null,null,null,null,null,null,null,null,null,null,null,null,null,null,{"$f":"IF(OR(Q135=$M$5,Q135=\"\"),\"\",Q135+1)","v":""}]
[null,null,null,null,null,null,null,null,null,null,null,null,null,null,null,null,""]
[null,null,null,null,null,null,null,null,null,null,null,null,null,null,null,null,""]
[null,null,null,null,null,null,null,null,null,null,null,null,null,null,null,null,""]
[null,null,null,null,null,null,null,null,null,null,null,null,null,null,null,null,""]
[null,null,null,null,null,null,null,null,null,null,null,null,null,null,null,null,""]
[null,null,null,null,null,null,null,null,null,null,null,null,null,null,null,null,""]
[null,null,null,null,null,null,null,null,null,null,null,null,null,null,null,null,""]
[null,null,null,null,null,null,null,null,null,null,null,null,null,null,null,null,""]
[null,null,null,null,null,null,null,null,null,null,null,null,null,null,null,null,""]
[null,null,null,null,null,null,null,null,null,null,null,null,null,null,null,null,""]
[null,null,null,null,null,null,null,null,null,null,null,null,null,null,null,null,""]
[null,null,null,null,null,null,null,null,null,null,null,null,null,null,null,null,""]
[null,null,null,null,null,null,null,null,null,null,null,null,null,null,null,null,""]
[null,null,null,null,null,null,null,null,null,null,null,null,null,null,null,null,""]
[null,null,null,null,null,null,null,null,null,null,null,null,null,null,null,null,""]
[null,null,null,null,null,null,null,null,null,null,null,null,null,null,null,null,""]
[null,null,null,null,null,null,null,null,null,null,null,null,null,null,null,null,""]
[null,null,null,null,null,null,null,null,null,null,null,null,null,null,null,null,""]
[null,null,null,null,null,null,null,null,null,null,null,null,null,null,null,null,""]
[null,null,null,null,null,null,null,null,null,null,null,null,null,null,null,null,""]
[null,null,null,null,null,null,null,null,null,null,null,null,null,null,null,null,""]
[null,null,null,null,null,null,null,null,null,null,null,null,null,null,null,null,""]
[null,null,null,null,null,null,null,null,null,null,null,null,null,null,null,null,""]
[null,null,null,null,null,null,null,null,null,null,null,null,null,null,null,null,""]
[null,null,null,null,null,null,null,null,null,null,null,null,null,null,null,null,""]
[null,null,null,null,null,null,null,null,null,null,null,null,null,null,null,null,""]
[null,null,null,null,null,null,null,null,null,null,null,null,null,null,null,null,""]
[null,null,null,null,null,null,null,null,null,null,null,null,null,null,null,null,""]
[null,null,null,null,null,null,null,null,null,null,null,null,null,null,null,null,""]
[null,null,null,null,null,null,null,null,null,null,null,null,null,null,null,null,""]
[null,null,null,null,null,null,null,null,null,null,null,null,null,null,null,null,""]
[null,null,null,null,null,null,null,null,null,null,null,null,null,null,null,null,""]
[null,null,null,null,null,null,null,null,null,null,null,null,null,null,null,null,""]
[null,null,null,null,null,null,null,null,null,null,null,null,null,null,null,null,""]
[null,null,null,null,null,null,null,null,null,null,null,null,null,null,null,null,""]
[null,null,null,null,null,null,null,null,null,null,null,null,null,null,null,null,""]
[null,null,null,null,null,null,null,null,null,null,null,null,null,null,null,null,""]
[null,null,null,null,null,null,null,null,null,null,null,null,null,null,null,null,""]
[null,null,null,null,null,null,null,null,null,null,null,null,null,null,null,null,""]
[null,null,null,null,null,null,null,null,null,null,null,null,null,null,null,null,""]
[null,null,null,null,null,null,null,null,null,null,null,null,null,null,null,null,""]
[null,null,null,null,null,null,null,null,null,null,null,null,null,null,null,null,""]
[null,null,null,null,null,null,null,null,null,null,null,null,null,null,null,null,""]
[null,null,null,null,null,null,null,null,null,null,null,null,null,null,null,null,""]
[null,null,null,null,null,null,null,null,null,null,null,null,null,null,null,null,""]
[null,null,null,null,null,null,null,null,null,null,null,null,null,null,null,null,""]
[null,null,null,null,null,null,null,null,null,null,null,null,null,null,null,null,""]
[null,null,null,null,null,null,null,null,null,null,null,null,null,null,null,null,""]
[null,null,null,null,null,null,null,null,null,null,null,null,null,null,null,null,""]
[null,null,null,null,null,null,null,null,null,null,null,null,null,null,null,null,""]
[null,null,null,null,null,null,null,null,null,null,null,null,null,null,null,null,""]
[null,null,null,null,null,null,null,null,null,null,null,null,null,null,null,null,""]
[null,null,null,null,null,null,null,null,null,null,null,null,null,null,null,null,""]
[null,null,null,null,null,null,null,null,null,null,null,null,null,null,null,null,""]
[null,null,null,null,null,null,null,null,null,null,null,null,null,null,null,null,""]
[null,null,null,null,null,null,null,null,null,null,null,null,null,null,null,null,""]
[null,null,null,null,null,null,null,null,null,null,null,null,null,null,null,null,""]
[null,null,null,null,null,null,null,null,null,null,null,null,null,null,null,null,""]
[null,null,null,null,null,null,null,null,null,null,null,null,null,null,null,null,""]
[null,null,null,null,null,null,null,null,null,null,null,null,null,null,null,null,""]
[null,null,null,null,null,null,null,null,null,null,null,null,null,null,null,null,""]
[null,null,null,null,null,null,null,null,null,null,null,null,null,null,null,null,""]
[null,null,null,null,null,null,null,null,null,null,null,null,null,null,null,null,""]
[null,null,null,null,null,null,null,null,null,null,null,null,null,null,null,null,{"$f":"IF(OR(Q199=$M$5,Q199=\"\"),\"\",Q199+1)","v":""}]
[null,null,null,null,null,null,null,null,null,null,null,null,null,null,null,null,""]
[null,null,null,null,null,null,null,null,null,null,null,null,null,null,null,null,""]
[null,null,null,null,null,null,null,null,null,null,null,null,null,null,null,null,""]
[null,null,null,null,null,null,null,null,null,null,null,null,null,null,null,null,""]
[null,null,null,null,null,null,null,null,null,null,null,null,null,null,null,null,""]
[null,null,null,null,null,null,null,null,null,null,null,null,null,null,null,null,""]
[null,null,null,null,null,null,null,null,null,null,null,null,null,null,null,null,""]
[null,null,null,null,null,null,null,null,null,null,null,null,null,null,null,null,""]
[null,null,null,null,null,null,null,null,null,null,null,null,null,null,null,null,""]
[null,null,null,null,null,null,null,null,null,null,null,null,null,null,null,null,""]
[null,null,null,null,null,null,null,null,null,null,null,null,null,null,null,null,""]
[null,null,null,null,null,null,null,null,null,null,null,null,null,null,null,null,""]
[null,null,null,null,null,null,null,null,null,null,null,null,null,null,null,null,""]
[null,null,null,null,null,null,null,null,null,null,null,null,null,null,null,null,""]
[null,null,null,null,null,null,null,null,null,null,null,null,null,null,null,null,""]
[null,null,null,null,null,null,null,null,null,null,null,null,null,null,null,null,""]
[null,null,null,null,null,null,null,null,null,null,null,null,null,null,null,null,""]
[null,null,null,null,null,null,null,null,null,null,null,null,null,null,null,null,""]
[null,null,null,null,null,null,null,null,null,null,null,null,null,null,null,null,""]
[null,null,null,null,null,null,null,null,null,null,null,null,null,null,null,null,""]
[null,null,null,null,null,null,null,null,null,null,null,null,null,null,null,null,""]
[null,null,null,null,null,null,null,null,null,null,null,null,null,null,null,null,""]
[null,null,null,null,null,null,null,null,null,null,null,null,null,null,null,null,""]
[null,null,null,null,null,null,null,null,null,null,null,null,null,null,null,null,""]
[null,null,null,null,null,null,null,null,null,null,null,null,null,null,null,null,""]
[null,null,null,null,null,null,null,null,null,null,null,null,null,null,null,null,""]
[null,null,null,null,null,null,null,null,null,null,null,null,null,null,null,null,""]
[null,null,null,null,null,null,null,null,null,null,null,null,null,null,null,null,""]
[null,null,null,null,null,null,null,null,null,null,null,null,null,null,null,null,""]
[null,null,null,null,null,null,null,null,null,null,null,null,null,null,null,null,""]
[null,null,null,null,null,null,null,null,null,null,null,null,null,null,null,null,""]
[null,null,null,null,null,null,null,null,null,null,null,null,null,null,null,null,""]
[null,null,null,null,null,null,null,null,null,null,null,null,null,null,null,null,""]
[null,null,null,null,null,null,null,null,null,null,null,null,null,null,null,null,""]
[null,null,null,null,null,null,null,null,null,null,null,null,null,null,null,null,""]
[null,null,null,null,null,null,null,null,null,null,null,null,null,null,null,null,""]
[null,null,null,null,null,null,null,null,null,null,null,null,null,null,null,null,""]
[null,null,null,null,null,null,null,null,null,null,null,null,null,null,null,null,""]
[null,null,null,null,null,null,null,null,null,null,null,null,null,null,null,null,""]
[null,null,null,null,null,null,null,null,null,null,null,null,null,null,null,null,""]
[null,null,null,null,null,null,null,null,null,null,null,null,null,null,null,null,""]
[null,null,null,null,null,null,null,null,null,null,null,null,null,null,null,null,""]
[null,null,null,null,null,null,null,null,null,null,null,null,null,null,null,null,""]
[null,null,null,null,null,null,null,null,null,null,null,null,null,null,null,null,""]
[null,null,null,null,null,null,null,null,null,null,null,null,null,null,null,null,""]
[null,null,null,null,null,null,null,null,null,null,null,null,null,null,null,null,""]
[null,null,null,null,null,null,null,null,null,null,null,null,null,null,null,null,""]
[null,null,null,null,null,null,null,null,null,null,null,null,null,null,null,null,""]
[null,null,null,null,null,null,null,null,null,null,null,null,null,null,null,null,""]
[null,null,null,null,null,null,null,null,null,null,null,null,null,null,null,null,""]
[null,null,null,null,null,null,null,null,null,null,null,null,null,null,null,null,""]
[null,null,null,null,null,null,null,null,null,null,null,null,null,null,null,null,""]
[null,null,null,null,null,null,null,null,null,null,null,null,null,null,null,null,""]
[null,null,null,null,null,null,null,null,null,null,null,null,null,null,null,null,""]
[null,null,null,null,null,null,null,null,null,null,null,null,null,null,null,null,""]
[null,null,null,null,null,null,null,null,null,null,null,null,null,null,null,null,""]
[null,null,null,null,null,null,null,null,null,null,null,null,null,null,null,null,""]
[null,null,null,null,null,null,null,null,null,null,null,null,null,null,null,null,""]
[null,null,null,null,null,null,null,null,null,null,null,null,null,null,null,null,""]
[null,null,null,null,null,null,null,null,null,null,null,null,null,null,null,null,""]
[null,null,null,null,null,null,null,null,null,null,null,null,null,null,null,null,""]
[null,null,null,null,null,null,null,null,null,null,null,null,null,null,null,null,""]
[null,null,null,null,null,null,null,null,null,null,null,null,null,null,null,null,""]
[null,null,null,null,null,null,null,null,null,null,null,null,null,null,null,null,{"$f":"IF(OR(Q263=$M$5,Q263=\"\"),\"\",Q263+1)","v":""}]
[null,null,null,null,null,null,null,null,null,null,null,null,null,null,null,null,""]
[null,null,null,null,null,null,null,null,null,null,null,null,null,null,null,null,""]
[null,null,null,null,null,null,null,null,null,null,null,null,null,null,null,null,""]
[null,null,null,null,null,null,null,null,null,null,null,null,null,null,null,null,""]
[null,null,null,null,null,null,null,null,null,null,null,null,null,null,null,null,""]
[null,null,null,null,null,null,null,null,null,null,null,null,null,null,null,null,""]
[null,null,null,null,null,null,null,null,null,null,null,null,null,null,null,null,""]
[null,null,null,null,null,null,null,null,null,null,null,null,null,null,null,null,""]
[null,null,null,null,null,null,null,null,null,null,null,null,null,null,null,null,""]
[null,null,null,null,null,null,null,null,null,null,null,null,null,null,null,null,""]
[null,null,null,null,null,null,null,null,null,null,null,null,null,null,null,null,""]
[null,null,null,null,null,null,null,null,null,null,null,null,null,null,null,null,""]
[null,null,null,null,null,null,null,null,null,null,null,null,null,null,null,null,""]
[null,null,null,null,null,null,null,null,null,null,null,null,null,null,null,null,""]
[null,null,null,null,null,null,null,null,null,null,null,null,null,null,null,null,""]
[null,null,null,null,null,null,null,null,null,null,null,null,null,null,null,null,""]
[null,null,null,null,null,null,null,null,null,null,null,null,null,null,null,null,""]
[null,null,null,null,null,null,null,null,null,null,null,null,null,null,null,null,""]
[null,null,null,null,null,null,null,null,null,null,null,null,null,null,null,null,""]
[null,null,null,null,null,null,null,null,null,null,null,null,null,null,null,null,""]
[null,null,null,null,null,null,null,null,null,null,null,null,null,null,null,null,""]
[null,null,null,null,null,null,null,null,null,null,null,null,null,null,null,null,""]
[null,null,null,null,null,null,null,null,null,null,null,null,null,null,null,null,""]
[null,null,null,null,null,null,null,null,null,null,null,null,null,null,null,null,""]
[null,null,null,null,null,null,null,null,null,null,null,null,null,null,null,null,""]
[null,null,null,null,null,null,null,null,null,null,null,null,null,null,null,null,""]
[null,null,null,null,null,null,null,null,null,null,null,null,null,null,null,null,""]
[null,null,null,null,null,null,null,null,null,null,null,null,null,null,null,null,""]
[null,null,null,null,null,null,null,null,null,null,null,null,null,null,null,null,""]
[null,null,null,null,null,null,null,null,null,null,null,null,null,null,null,null,""]
[null,null,null,null,null,null,null,null,null,null,null,null,null,null,null,null,""]
[null,null,null,null,null,null,null,null,null,null,null,null,null,null,null,null,""]
[null,null,null,null,null,null,null,null,null,null,null,null,null,null,null,null,""]
[null,null,null,null,null,null,null,null,null,null,null,null,null,null,null,null,""]
[null,null,null,null,null,null,null,null,null,null,null,null,null,null,null,null,""]
[null,null,null,null,null,null,null,null,null,null,null,null,null,null,null,null,""]
[null,null,null,null,null,null,null,null,null,null,null,null,null,null,null,null,""]
[null,null,null,null,null,null,null,null,null,null,null,null,null,null,null,null,""]
[null,null,null,null,null,null,null,null,null,null,null,null,null,null,null,null,""]
[null,null,null,null,null,null,null,null,null,null,null,null,null,null,null,null,""]
[null,null,null,null,null,null,null,null,null,null,null,null,null,null,null,null,""]

{"sheet":"Payslip","index":2,"n_rows":30,"n_cols":27,"rows_kept":30,"cut":false,"hidden":false,"merged":[[26,3,26,8],[8,1,8,5],[9,1,9,5],[10,1,10,5],[11,1,11,5],[14,1,14,2],[20,1,20,6],[22,1,22,2],[12,1,12,6],[0,0,0,10],[12,9,12,10],[20,9,20,10],[25,9,25,10],[15,1,15,5],[16,1,16,5],[17,1,17,5],[18,1,18,5],[19,1,19,5],[25,1,25,6],[23,1,23,5],[7,1,7,2]]}
[{"$f":"\"Pay Slip Period:  \"&TEXT(data!K3,\"[$-en-us]dd/mmm/yyyy\")&\"  To \"&TEXT(data!N3,\"[$-en-us]dd/mmm/yyyy\")","v":"Pay Slip Period:  01/Jul/2018  To 31/Jul/2018"},null,null,null,null,null,null,null,null,null,null,null,null,null,null,null,null,null,null,null,null,null,null,null,null,null,525]
["Salary Month:",null,null,{"$f":"data!K3","v":"2018-07-01"},null,null,"Employeement Start Date:",null,{"$f":"VLOOKUP(ID,_xlnm.Database,6,0)","v":"2017-11-01"},null,null,null,null,null,null,null,null,null,null,null,null,null,null,null,null,null,528]
["Employee Name:",null,null,{"$f":"VLOOKUP(ID,_xlnm.Database,2,0)","v":"Salah "},null,null,"Employeement End Date:",null,{"$f":"VLOOKUP(ID,_xlnm.Database,7,0)","v":"2018-12-15"}]
["Employe ID Number:",null,null,2300685,null,null,"Projet Code:",null,{"$f":"VLOOKUP(ID,_xlnm.Database,4,0)","v":"H005205"}]
["Employe Position:",null,null,{"$f":"VLOOKUP(ID,_xlnm.Database,3,0)","v":"Driver "},null,null,"Location:",null,{"$f":"VLOOKUP(ID,_xlnm.Database,5,0)","v":"s16"}]
[]
[]
[null,"Pay Details:",null,null,null,null,"Amounts",null,null,"Total Amount (USD)"]
[null,"Monthly Basic Salary",null,null,null,null,{"$f":"VLOOKUP(ID,_xlnm.Database,8,0)","v":250}]
[null,{"$f":"IF(G10>31,\"Official Working Hours/Months\",\"Official Working Days/Months\")","v":"Official Working Hours/Months"},null,null,null,null,{"$f":"VLOOKUP(ID,_xlnm.Database,9,0)","v":372}]
[null,{"$f":"IF(G10>31,\"Rate/Hour\",\"Rate/Day\")","v":"Rate/Hour"},null,null,null,null,{"$f":"VLOOKUP(ID,_xlnm.Database,10,0)","v":0.67204301075268813}]
[null,{"$f":"IF(G10>31,\"Actual # Of Hours Worked\",\"Actual # Of Days Worked\")","v":"Actual # Of Hours Worked"},null,null,null,null,{"$f":"VLOOKUP(ID,_xlnm.Database,11,0)","v":372}]
[null,"Total Salary ",null,null,null,null,null,null,null,{"$f":"VLOOKUP(ID,_xlnm.Database,12,0)","v":250}]
[]
[null,"Additions:"]
[null,{"$f":"data!P5","v":"Living Allowance"},null,null,null,null,{"$f":"VLOOKUP(ID,_xlnm.Database,15,0)","v":0}]
[null,"Transportation",null,null,null,null,{"$f":"VLOOKUP(ID,_xlnm.Database,16,0)","v":0}]
[null,{"$f":"data!R5","v":"Health Insurance Allowance"},null,null,null,null,{"$f":"VLOOKUP(ID,_xlnm.Database,17,0)","v":0}]
[null,{"$f":"data!S5","v":"Per Diem"},null,null,null,null,{"$f":"VLOOKUP(ID,_xlnm.Database,18,0)","v":0}]
[null,"Retro Salary",null,null,null,null,{"$f":"VLOOKUP(ID,_xlnm.Database,13,0)","v":0}]
[null,"Total allowance",null,null,null,null,null,null,null,{"$f":"VLOOKUP(ID,_xlnm.Database,19,0)","v":0}]
[]
[null,"Deductions:"]
[null,"If any",null,null,null,null,{"$f":"VLOOKUP(ID,_xlnm.Database,20,0)","v":0}]
[]
[null,"Net Salary Transfar:",null,null,null,null,null,null,null,{"$f":"VLOOKUP(ID,_xlnm.Database,21,0)","v":250}]
[null,null,null,{"$f":"SpellNumberUSD(J26)","v":"Only Two Hundred Fifty  US Dollars and No Cents"}]
[null,"Remarks:",null,{"$f":"VLOOKUP(ID,_xlnm.Database,24,0)","v":0}]
[null,"Paid by:",null,null,null,null,null,null,null,"Employee Signature:"]
[null,"Hamsho",null,null,null,null,null,null,null,{"$f":"D3","v":"Salah "}]

{"sheet":"data","index":3,"n_rows":46,"n_cols":45,"rows_kept":46,"cut":false,"hidden":false,"merged":[[0,0,0,24],[1,25,1,47],[2,13,2,14],[2,10,2,11],[1,11,1,13],[1,8,1,10]]}
[]
[null,null,null,null,null,null,null,null,"Sallray 023   Staff Payroll  ",null,null,"2018-07-01",null,null,"Payments (in USD)"]
[null,null,null,null,null,null,null,null,null,"Pay Period:  ",{"$f":"EOMONTH(L2,-1)+1","v":"2018-07-01"},null,"To ",{"$f":"EOMONTH(L2,0)","v":"2018-07-31"}]
[]
["#","ID","Name","Position","Project Code","Site","Original Start Date","End Date","Monthly Basic Salary","Official Working days/ Months","Rate / day","Actual # of days worked","Net Salary  (USD)","Retro Salary & /Arrear [included well being contr]","Total Basic Salary","Living Allowance","Transportation Communication Allowance","Health Insurance Allowance","Per Diem","Total Allowances","Deductions If any Define in Remarks","Net Payment  (USD)","Net Payment  (USD)2","The difference (USD)","Remarks",null,"Supervisor","FP","WH","EC","QC","Qa","Qa 1898","Qa 1893","W-0714","HO-06492","HPF 7196","QC-0573","S","O-3798","F-8367","O-1473","O-5205","Location","Month"]
[1,2300227,"Hasan ","Documentary And Accountant","H003798","s15","2016-05-01","2018-10-15",300,27,{"$f":"I6/J6","v":11.111111111111111},27,{"$f":"ROUND(L6*K6,0)","v":300},0,{"$f":"ROUND(M6+N6,0)","v":300},0,0,0,0,{"$f":"SUM(ROUND(P6+Q6+R6+S6,0))","v":0},0,{"$f":"ROUND(SUM(O6,T6,)-U6,2)","v":300},null,{"$f":"V6-W6","v":300},null,null,"Dr",0.01,0.02,0.03,0.04,0.05,0.06,7.0000000000000007E-2,0.08,0.09,0.1,0.11,0.12,0.13,0.14000000000000001,0.15,0.16,23,"2018-01-01"]
[{"$f":"A6+1","v":2},2300267,"Abdullah","Nurse","H003798","s15","2016-05-01","2018-10-15",300,27,11.111111111111111,27,300,0,300,0,0,0,0,0,0,300,null,300,null,null,"Dr",null,null,null,null,null,null,null,null,null,null,null,null,1,null,null,null,23,"2018-02-01"]
[3,2300405,"Ibrahim ","Driver","H003798","s15","2017-04-01","2018-10-15",200,27,7.4074074074074074,27,200,0,200,0,0,0,0,0,0,200,null,200,null,null,"Dr",null,null,null,null,null,null,null,null,null,null,null,null,1,null,null,null,23,"2018-03-01"]
[4,2300723,"Mohammad","Physician","H003798","s15","2018-02-01","2018-10-15",1200,27,44.444444444444443,27,1200,0,1200,0,0,0,0,0,0,1200,null,1200,null,null,"Dr",null,null,null,null,null,null,null,null,null,null,null,null,1,null,null,null,23,"2018-04-01"]
[5,2300725,"Fatima ","Midwife  ","H003798","s15","2018-03-01","2018-10-15",500,27,18.518518518518519,27,500,0,500,0,0,0,0,0,0,500,null,500,null,null,"Dr",null,null,null,null,null,null,null,null,null,null,null,null,1,null,null,null,23,"2018-05-01"]
[6,2300685,"Salah ","Driver ","H005205","s16","2017-11-01","2018-12-15",250,372,0.67204301075268813,372,250,0,250,0,0,0,0,0,0,250,150,100,null,null,"Dr",null,null,null,null,null,null,null,null,null,null,null,null,null,null,null,1,23,"2018-06-01"]
[7,2300686,"Basim ","Paramedic","H005205","s16","2017-11-01","2018-12-15",200,372,0.5376344086021505,372,200,0,200,0,0,0,0,0,0,200,150,50,null,null,"Dr",null,null,null,null,null,null,null,null,null,null,null,null,null,null,null,1,23,"2018-07-01"]
[8,2300687,"Ali","Driver ","H005205","s16","2017-11-01","2018-12-15",250,372,0.67204301075268813,372,250,0,250,0,0,0,0,0,0,250,150,100,null,null,"Dr",null,null,null,null,null,null,null,null,null,null,null,null,null,null,null,1,23,"2018-08-01"]
[9,2300688,"Maamoon ","Paramedic","H005205","s16","2017-11-01","2018-12-15",200,372,0.5376344086021505,372,200,0,200,0,0,0,0,0,0,200,150,50,null,null,"Dr",null,null,null,null,null,null,null,null,null,null,null,null,null,null,null,1,23,"2018-09-01"]
[10,2100177,"Talha ","Logistic Officer","Shared","admın","2017-01-01","2018-10-15",800,27,29.62962962962963,27,800,0,800,0,0,0,0,0,0,800,null,800,null,null,"Dr",null,null,null,null,null,null,null,null,null,null,null,null,0.5,null,0.5,null,23,"2018-10-01"]
[11,2100220,"Ayman ","M&E Officer","HP0FPA4","admın","2016-09-01","2018-12-31",700,27,25.925925925925927,27,700,0,700,0,0,0,0,0,0,700,600,100,null,null,"Dr",1,null,null,null,null,null,null,null,null,null,null,null,null,null,null,null,23,"2018-11-01"]
[12,2300006,"Yaser","Field Assistant","H003798","admın","2016-09-01","2018-10-15",200,14,14.285714285714286,14,200,0,200,0,0,0,0,0,0,200,800,-600,null,null,"Dr",null,null,null,null,null,null,null,null,null,null,null,null,1,null,null,null,23,"2018-12-01"]
[13,2300008,"Osama","Logistics Officer","Shared","admın","2016-09-01","2018-10-15",500,27,18.518518518518519,27,500,0,500,0,0,0,0,0,0,500,162,338,null,null,"Dr",null,null,null,null,null,null,null,null,null,null,null,null,0.5,null,0.5,null,23,"2019-01-01"]
[14,2300010,"Obaida ","Media Officer","H001473","admın","2016-09-01","2018-08-31",600,27,22.222222222222221,27,600,0,600,0,0,0,0,0,0,600,40,560,null,null,"Dr",null,null,null,null,null,null,null,null,null,null,null,null,null,null,1,null,23,"2019-02-01"]
[15,2300133,"Wasel ","Field Project Coordinator","H001473","admın","2017-01-01","2018-08-31",1850,27,68.518518518518519,27,1850,0,1850,0,0,0,0,0,0,1850,269,1581,null,null,"Dr",null,null,null,null,null,null,null,null,null,null,null,null,null,null,1,null,23,"2019-03-01"]
[16,2300204,"Mohammad ","Finance Officer","HP00649","admın","2017-05-01","2019-05-14",800,27,29.62962962962963,27,800,0,800,0,0,0,0,0,0,800,null,800,null,null,"Dr",null,null,1,null,null,null,null,null,null,null,null,null,null,null,null,null,23,"2019-04-01"]
[17,2300272,"Jalaa","Field Protection Coordinator","HP0FPA4","admın","2016-10-01","2018-12-31",1200,27,44.444444444444443,27,1200,0,1200,0,0,0,0,0,0,1200,null,1200,null,null,"Dr",1,null,null,null,null,null,null,null,null,null,null,null,null,null,null,null,23,"2019-05-01"]
[18,2300307,"Osama ","Finance Officer","HP0FPA4","admın","2016-07-01","2018-12-31",900,27,33.333333333333336,27,900,0,900,0,0,0,0,0,0,900,350,550,null,null,"Dr",1,null,null,null,null,null,null,null,null,null,null,null,null,null,null,null,23,"2019-06-01"]
[19,2300403,"Saad ","Logistics Officer","HP0FPA4","admın","2016-11-01","2018-12-31",600,27,22.222222222222221,27,600,0,600,0,0,0,0,0,0,600,null,600,null,null,"Dr",1,null,null,null,null,null,null,null,null,null,null,null,null,null,null,null,23,"2019-07-01"]
[20,2300627,"Mohamed ","HR Officer","HP0FPA4","admın","2017-08-01","2018-12-31",700,27,25.925925925925927,27,700,0,700,0,0,0,0,0,0,700,null,700,null,null,"Dr",1,null,null,null,null,null,null,null,null,null,null,null,null,null,null,null,23,"2019-08-01"]
[21,2300704,"hasan","Field Assistant","H003798","admın","2017-11-18","2018-10-15",200,14,14.285714285714286,14,200,0,200,0,0,0,0,0,0,200,null,200,null,null,"Dr",null,null,null,null,null,null,null,null,null,null,null,null,1,null,null,null,23,"2019-09-01"]
[22,2300298,"Hanan","Physician-Gynaecologist","HP00649","n10","2016-10-01","2019-05-14",400,9,44.444444444444443,3,133,0,133,0,0,0,0,0,0,133,350,-217,null,null,"Dr",null,null,1,null,null,null,null,null,null,null,null,null,null,null,null,null,23,"2019-10-01"]
[23,2300825,"Razaz","Physician-Internist","HP00649","n10","2018-06-09","2019-05-14",400,10,40,10,400,0,400,0,0,0,0,0,0,400,150,250,null,null,"Dr",null,null,1,null,null,null,null,null,null,null,null,null,null,null,null,null,23,"2019-11-01"]
[24,2300826,"Jroud","Physician-Ophthalmologist","HP00649","n10","2018-06-09","2019-05-14",400,9,44.444444444444443,9,400,0,400,0,0,0,0,0,0,400,0,400,null,null,"Dr",null,null,1,null,null,null,null,null,null,null,null,null,null,null,null,null,23,"2019-12-01"]
[25,2300827,"Helal","Physician-General","HP00649","n10","2018-06-09","2019-05-14",600,12,50,12,600,0,600,0,0,0,0,0,0,600,null,600,null,null,"Dr",null,null,1,null,null,null,null,null,null,null,null,null,null,null,null,null,23,"2020-01-01"]
[26,2300828,"Zreek ","Nurse ","HP00649","n10","2018-06-09","2019-05-14",300,27,11.111111111111111,27,300,0,300,0,0,0,0,0,0,300,null,300,null,null,"Dr",null,null,1,null,null,null,null,null,null,null,null,null,null,null,null,null,23,"2020-02-01"]
[27,2300829,"Tarek","Nurse ","HP00649","n10","2018-06-09","2019-05-14",300,27,11.111111111111111,27,300,0,300,0,0,0,0,0,0,300,null,300,null,null,"Dr",null,null,1,null,null,null,null,null,null,null,null,null,null,null,null,null,23,"2020-03-01"]
[28,2300830,"Rahoom","CHW","HP00649","n10","2018-06-09","2019-05-14",250,27,9.2592592592592595,27,250,0,250,0,0,0,0,0,0,250,null,250,null,null,"Dr",null,null,1,null,null,null,null,null,null,null,null,null,null,null,null,null,23,"2020-04-01"]
[29,2300831,"Mona","Midwife","HP00649","n10","2018-06-09","2019-05-14",500,27,18.518518518518519,27,500,0,500,0,0,0,0,0,0,500,null,500,null,null,"Dr",null,null,1,null,null,null,null,null,null,null,null,null,null,null,null,null,23,"2020-05-01"]
[30,2300833,"Aisha","Receptionist","HP00649","n10","2018-06-09","2019-05-14",200,27,7.4074074074074074,27,200,0,200,0,0,0,0,0,0,200,null,200,null,null,"Dr",null,null,1,null,null,null,null,null,null,null,null,null,null,null,null,null,23,"2020-06-01"]
[31,2300834,"Zakaria","Security Personnel","HP00649","n10","2018-06-09","2019-05-14",150,27,5.5555555555555554,27,150,0,150,0,0,0,0,0,0,150,400,-250,null,null,"Dr",null,null,1,null,null,null,null,null,null,null,null,null,null,null,null,null,23,"2020-07-01"]
[32,2300835,"Zainab","Housekeeper","HP00649","n10","2018-06-09","2019-05-14",150,27,5.5555555555555554,27,150,0,150,0,0,0,0,0,0,150,500,-350,null,null,"Dr",null,null,1,null,null,null,null,null,null,null,null,null,null,null,null,null,23,"2020-08-01"]
[33,2300726,"Huseen","MEAL Officer","H001473","admın","2018-03-18","2018-08-31",600,27,22.222222222222221,27,600,0,600,0,0,0,0,0,0,600,null,600,null,null,"Dr",null,null,null,null,null,null,null,null,null,null,null,null,null,null,1,null,23,"2020-09-01"]
[34,2100113,"Tajene","Ambulance Driver","H001898","A s","2017-01-01","2018-10-02",250,372,0.67204301075268813,372,250,0,250,0,0,0,0,0,0,250,162,88,null,null,"Dr",null,null,null,null,null,1,null,null,null,null,null,null,null,null,null,null,23,"2020-10-01"]
[35,2300106,"Ahmad","Ambulance Paramedic","H001898","A s","2016-09-01","2018-10-02",300,372,0.80645161290322576,372,300,0,300,0,0,0,0,0,0,300,300,0,null,null,"Dr",null,null,null,null,null,1,null,null,null,null,null,null,null,null,null,null,23]
[36,2300146,"Jobasi","Coordinator","H001898","A s","2016-11-01","2018-10-02",600,216,2.7777777777777777,216,600,0,600,0,0,0,0,0,0,600,null,600,null,null,"Dr",null,null,null,null,null,1,null,null,null,null,null,null,null,null,null,null,23]
[37,2300147,"Qalaji","MEAL Officer","H001898","A s","2016-11-01","2018-10-02",500,216,2.3148148148148149,216,500,0,500,0,0,0,0,0,0,500,null,500,null,null,"Dr",null,null,null,null,null,1,null,null,null,null,null,null,null,null,null,null,23]
["Total",null,null,null,null,null,null,null,{"$f":"SUBTOTAL(109,_b12[Monthly Basic Salary])","v":18350},null,null,null,{"$f":"SUBTOTAL(109,_b12[Net Salary  (USD)])","v":18083},{"$f":"SUBTOTAL(109,_b12[Retro Salary & /Arrear '[included well being contr']])","v":0},{"$f":"SUBTOTAL(109,_b12[Total Basic Salary])","v":18083},{"$f":"SUBTOTAL(109,_b12[Living Allowance])","v":0},{"$f":"SUBTOTAL(109,_b12[Transportation Communication Allowance])","v":0},{"$f":"SUBTOTAL(109,_b12[Health Insurance Allowance])","v":0},{"$f":"SUBTOTAL(109,_b12[Per Diem])","v":0},{"$f":"SUBTOTAL(109,_b12[Total Allowances])","v":0},{"$f":"SUBTOTAL(109,_b12[Deductions If any Define in Remarks])","v":0},{"$f":"SUBTOTAL(109,_b12[Net Payment  (USD)])","v":18083},{"$f":"SUBTOTAL(109,_b12[Net Payment  (USD)2])","v":4683},{"$f":"SUBTOTAL(109,_b12[The difference (USD)])","v":13400}]
["Prepared by: Azzam AL Khatib - HR Officer",null,null,null,null,null,null,null,null,null,null,"Reviewed by: Mohannad Al Shater - Finance Coordinator",null,null,null,null,null,null,null,null,null,"Approved by: Abdolsalam Daif - Turkey Country Director"]
[]
["Signature:______________________________",null,null,null,null,null,null,null,null,null,null,"Signature:______________________________",null,null,null,null,null,null,null,null,null,null,"Signature: ____________________________"]

{"sheet":"ورقة1","index":4,"n_rows":12,"n_cols":1,"rows_kept":12,"cut":false,"hidden":false,"merged":[[16,3,16,4]]}
["2018-01-01"]
["2018-02-01"]
["2018-03-01"]
["2018-04-01"]
["2018-05-01"]
["2018-06-01"]
["2018-07-01"]
["2018-08-01"]
["2018-09-01"]
["2018-10-01"]
["2018-11-01"]
["2018-12-01"]